{"text_format":"1","workbook":"xlsx","n_sheets":9,"sheets":["Instructions","CONTENTS","Business & other details","7.4 Shared Assets","8.2 Capex","AER CF","AER NRs","AER lookups","AER ETL"],"not_rendered":{"charts":0,"images":6,"macros":1,"external_links":0,"defined_names":377,"comments":1,"pivot_tables":0},"unopened":[],"bounds":{"document_bytes":16777216,"sheet_cells":100000,"rows_first":2000,"rows_last":500,"rows_between":2000,"halvings":0,"cell_chars":16384,"cell_head_chars":4096},"cells_cut":0,"cells_raw":0,"read":"whole","date_system":"1900"}

{"sheet":"Instructions","index":0,"n_rows":27,"n_cols":4,"rows_kept":27,"cut":false,"hidden":false,"merged":[[26,2,26,4],[10,2,10,4],[12,1,14,1],[12,2,12,4],[13,2,13,3],[14,2,14,4],[16,2,16,4],[7,1,8,1],[7,2,7,3],[8,2,8,4],[18,1,24,1],[18,2,18,4],[1,1,1,4],[2,1,2,4],[3,1,3,4],[4,1,4,4],[5,2,5,4]]}
[]
[null,{"$f":"CONCATENATE(dms_Sector,\" \",dms_Segment,\" \", \"Network Service Provider\")","v":"Electricity Transmission Network Service Provider"}]
[null,"Historical Reporting"]
[null,{"$f":"CONCATENATE(\"This template is to be used by \",dms_TradingNameFull,\" to fulfil its reporting obligations to the AER.\")","v":"This template is to be used by Queensland Electricity Transmission Corporation Limited trading as Powerlink Queensland to fulfil its reporting obligations to the AER."}]
[null,"INSTRUCTIONS"]
[null,"GENERAL","Complete the Business & other details worksheet before entering data or values in any other worksheets. The Business & other details worksheet is linked to other worksheets within the workbook and automatically generates certain column headings and conditional formatting."]
[]
[null,"CONFIDENTIAL INFORMATION","\nPlease use the appropriate style to identify\nconfidential and protected information\nin the confidential workbook. \n"]
[null,null,"Do this by selecting the cell that contains the correct cell colour and format, then copy it and 'paste format' to the confidential information. Alternatively you can change the fill of the cell to the same colour and pattern manually. This will format the cells a specific colour that is identified by the AER's database which in turn marks that information as confidential or protected."]
[]
[null,"RESPONSES","\nPlease return two (2) files to the AER: \n\n1. A confidential version which must contain a complete set of all responses with confidential information marked using the Mark selection CONFIDENTIAL macro and which has been completed using the locked template file provided by the AER. \n\n2. A public version with confidential information either removed completely or aggregated in some form together with written consent to disclose the public version of the response.\n\nUse the drop down box on the Business and other details worksheet to identify the file as either confidential ('consolidated') or public. "]
[]
[null,"AMENDMENTS","\nIf an NSP wishes to correct data previously submitted to the AER it should resubmit that data using the original completed submission as the starting point. Please make any necessary changes to the data. Data that is not being amended should be left unchanged. \n\nNSPs must identify the reason for the amendments in the Amendment Reason box on the  Business and other details worksheet. NSPs may provide further details regarding any amendments in the Amendments worksheet. "]
[null,null,"NSP may recolour cells using the Amended \nstyle on the Home ribbon to identify cells that \ncontain amended data.\nNB: if data is also CONFIDENTIAL, apply \nthe Amended Confidential style"]
[null,null,"Please resubmit two (2) files - a confidential version and a public version of the amended submission to the AER"]
[]
[null,"UNITS OF MEASURE","\nAll amounts are to be unrounded and reported on a one for one basis: that is 1000 is to be entered as '1000'. Applicable units of measure may be identified in the table column headings or row descriptors.\n\n"]
[]
[null,"INPUT / NON-INPUT CELLS"]
[null,null,null,"Yellow = Input cell (mandatory)"]
[null,null,null,"Darker yellow = input cell (mandatory)"]
[null,null,null,"Orange = input cell (if data available)"]
[null,null,null,"Grey = Not applicable/No inputs required"]
[null,null,null,"PLEASE DO NOT ENTER TEXT into cells that are to contain numbers (including 'numbers stored as text')"]
[]
[]
[null,"NAVIGATION","\nSome tables in the worksheets have been \"grouped\" to allow for easy navigation. To ungroup or group data use the outline symbols in the left margin (for Row groupings) or above the columns (for column groupings). \n\n\n\n"]

{"sheet":"CONTENTS","index":1,"n_rows":39,"n_cols":6,"rows_kept":39,"cut":false,"hidden":false,"merged":[[5,4,5,5]]}
[null,null,null,{"$f":"INDEX(dms_Worksheet_List,MATCH(dms_Model,dms_Model_List))","v":"NEW HISTORICAL ANNUAL REPORTING"}]
[null,null,null,{"$f":"INDEX(dms_TradingNameFull_List,MATCH(dms_TradingName,dms_TradingName_List))","v":"Queensland Electricity Transmission Corporation Limited trading as Powerlink Queensland"}]
[null,null,null,{"$f":"CONCATENATE(\"REGULATORY PERIOD FROM \", FRCP_y1,\" TO \",FRCP_y5)","v":"REGULATORY PERIOD FROM 2027-28 TO 2031-32"}]
[]
[]
[null,null,null,null,"CONTENTS"]
[]
[null,null,null,null,"TEMPLATE","RESET RIN - OCTOBER 2025"]
[]
[null,null,null,null,"SUBMISSION","Business & other details"]
[]
[null,null,null,null,"EXPENDITURE","2.1 Expenditure summary"]
[null,null,null,null,null,"2.2 Repex"]
[null,null,null,null,null,"2.3 Augex (a)"]
[null,null,null,null,null,"2.3 Augex (b)"]
[null,null,null,null,null,"2.5 Connections"]
[null,null,null,null,null,"2.6 Non-network"]
[null,null,null,null,null,"2.10 Overheads"]
[null,null,null,null,null,"2.11 Labour"]
[null,null,null,null,null,"2.14 Forecast price changes"]
[null,null,null,null,null,"2.16 Opex Summary"]
[null,null,null,null,null,"2.17 Step Changes"]
[]
[null,null,null,null,"ECONOMIC BENCHMARKING","3.1 Revenue"]
[null,null,null,null,null,"3.2 Operating expenditure"]
[null,null,null,null,null,"3.3 Assets (RAB)"]
[null,null,null,null,null,"3.4 Operational data"]
[null,null,null,null,null,"3.5 Physical assets"]
[null,null,null,null,null,"3.7 Operating environment"]
[]
[null,null,null,null,"NETWORK","5.4 MD & Utilisation - Spatial"]
[]
[null,null,null,null,"OTHER","7.1  Policies and Procedures"]
[null,null,null,null,null,"7.2 Contingent projects"]
[null,null,null,null,null,"7.3 Obligations"]
[null,null,null,null,"OTHER","7.4 Shared Assets"]
[null,null,null,null,null,"7.9 STPIS"]
[]
[null,null,null,null,"CAPEX","8.2 Capex"]

{"sheet":"Business & other details","index":2,"n_rows":74,"n_cols":79,"rows_kept":74,"cut":false,"hidden":false,"merged":[[61,25,61,34],[61,37,61,52],[69,25,71,34],[69,37,71,81],[73,25,73,34],[73,37,73,52],[63,25,63,34],[63,37,63,52],[65,25,65,34],[65,37,65,52],[67,25,67,34],[67,37,67,52],[51,37,51,44],[51,46,51,53],[51,55,51,62],[51,64,51,71],[51,73,51,80],[53,25,53,34],[53,37,53,44],[55,25,55,34],[55,37,55,44],[49,25,49,34],[49,37,49,44],[49,46,49,53],[49,55,49,62],[49,64,49,71],[49,73,49,80],[50,37,50,44],[50,46,50,53],[50,55,50,62],[50,64,50,71],[50,73,50,80],[46,37,46,44],[46,46,46,53],[46,55,46,62],[46,64,46,71],[46,73,46,80],[47,37,47,44],[47,46,47,53],[47,55,47,62],[47,64,47,71],[47,73,47,80],[43,37,43,44],[43,46,43,53],[43,55,43,62],[43,64,43,71],[43,73,43,80],[45,25,45,34],[45,37,45,44],[45,46,45,53],[45,55,45,62],[45,64,45,71],[45,73,45,80],[41,25,41,34],[41,37,41,44],[41,46,41,53],[41,55,41,62],[41,64,41,71],[41,73,41,80],[42,37,42,44],[42,46,42,53],[42,55,42,62],[42,64,42,71],[42,73,42,80],[31,21,31,35],[31,37,31,58],[31,60,31,66],[31,68,31,89],[32,21,32,35],[32,37,32,58],[32,60,32,66],[32,68,32,89],[33,21,33,35],[33,37,33,58],[33,60,33,66],[33,68,33,89],[23,21,23,35],[23,37,23,58],[23,60,23,66],[23,68,23,89],[24,21,24,35],[24,37,24,51],[24,60,24,66],[24,68,24,82],[25,21,25,35],[25,37,25,40],[25,49,25,51],[25,60,25,66],[25,68,25,71],[25,80,25,82],[0,7,2,15],[3,21,3,57],[6,21,6,75],[8,16,8,93],[15,21,15,35],[15,37,15,58],[16,21,16,35],[16,37,16,48],[22,21,22,35],[22,37,22,58],[22,60,22,66],[22,68,22,89]]}
[null,null,null,null,null,null,null,null,null,null,null,null,null,null,null,null,null,null,null,null,null,"REGULATORY REPORTING STATEMENT"]
[null,null,null,null,null,null,null,null,null,null,null,null,null,null,null,null,null,null,null,null,null,{"$f":"INDEX(dms_TradingNameFull_List,MATCH(dms_TradingName,dms_TradingName_List))","v":"Queensland Electricity Transmission Corporation Limited trading as Powerlink Queensland"}]
[null,null,null,null,null,null,null,null,null,null,null,null,null,null,null,null,null,null,null,null,null,{"$f":"CONCATENATE(\"REGULATORY PERIOD FROM \", FRCP_y1,\" TO \",FRCP_y5)","v":"REGULATORY PERIOD FROM 2027-28 TO 2031-32"}]
[null,null,null,null,null,null,null,null,null,null,null,null,null,null,null,null,null,null,null,null,null,"BUSINESS & OTHER DETAILS"]
[]
[null,null,null,null,null,null,null,null,null,null,null,null,null,null,null,null,null,null,null,null,null,"INSTRUCTIONS"]
[null,null,null,null,null,null,null,null,null,null,null,null,null,null,null,null,null,null,null,null,null,"Complete the following business details regulatory template before entering data or values in any other regulatory template. This regulatory template is linked to other cells within the spreadsheet and automatically generates column headings and conditional formatting to distinguish business specific input and non-input cells. "]
[]
[null,null,null,null,null,null,null,null,null,null,null,null,null,null,null,null,"SUBMISSION PARTICULARS INPUT SHEET"]
[]
[]
[null,null,null,null,null,null,null,null,null,null,null,null,null,null,null,null,null,null,null,null,null,"ENTITY DETAILS"]
[]
[null,null,null,null,null,null,null,null,null,null,null,null,null,null,null,null,null,null,null,null,null,"Business Name"]
[]
[null,null,null,null,null,null,null,null,null,null,null,null,null,null,null,null,null,null,null,null,null,"Short name",null,null,null,null,null,null,null,null,null,null,null,null,null,null,null,"Powerlink"]
[null,null,null,null,null,null,null,null,null,null,null,null,null,null,null,null,null,null,null,null,null,"ACN/ABN",null,null,null,null,null,null,null,null,null,null,null,null,null,null,null,{"$f":"INDEX(dms_ABN_List,MATCH(dms_TradingName,dms_TradingName_List))","v":82078849233}]
[]
[]
[]
[null,null,null,null,null,null,null,null,null,null,null,null,null,null,null,null,null,null,null,null,null,"Business Address",null,null,null,null,null,null,null,null,null,null,null,null,null,null,null,null,null,null,null,null,null,null,null,null,null,null,null,null,null,null,null,null,null,null,null,null,null,null,null,null,null,null,null,null,null,null,"Postal Address"]
[]
[null,null,null,null,null,null,null,null,null,null,null,null,null,null,null,null,null,null,null,null,null,"Address 1",null,null,null,null,null,null,null,null,null,null,null,null,null,null,null,{"$f":"INDEX(dms_Addr1_List,MATCH(dms_TradingName,dms_TradingName_List))","v":"33 Harold St"},null,null,null,null,null,null,null,null,null,null,null,null,null,null,null,null,null,null,null,null,null,null,"Address 1",null,null,null,null,null,null,null,{"$f":"INDEX(dms_PAddr1_List,MATCH(dms_TradingName,dms_TradingName_List))","v":"PO Box 1193"}]
[null,null,null,null,null,null,null,null,null,null,null,null,null,null,null,null,null,null,null,null,null,"Address 2",null,null,null,null,null,null,null,null,null,null,null,null,null,null,null,{"$f":"IF(ISBLANK(INDEX(dms_Addr2_List,MATCH(dms_TradingName,dms_TradingName_List))),\"\",(INDEX(dms_Addr2_List,MATCH(dms_TradingName,dms_TradingName_List))))","v":""},null,null,null,null,null,null,null,null,null,null,null,null,null,null,null,null,null,null,null,null,null,null,"Address 2",null,null,null,null,null,null,null,{"$f":"IF(ISBLANK(INDEX(dms_PAddr2_List,MATCH(dms_TradingName,dms_TradingName_List))),\"\",(INDEX(dms_PAddr2_List,MATCH(dms_TradingName,dms_TradingName_List))))","v":""}]
[null,null,null,null,null,null,null,null,null,null,null,null,null,null,null,null,null,null,null,null,null,"Suburb",null,null,null,null,null,null,null,null,null,null,null,null,null,null,null,{"$f":"INDEX(dms_Suburb_List,MATCH(dms_TradingName,dms_TradingName_List))","v":"VIRGINIA"},null,null,null,null,null,null,null,null,null,null,null,null,null,null,null,null,null,null,null,null,null,null,"Suburb",null,null,null,null,null,null,null,{"$f":"INDEX(dms_PSuburb_List,MATCH(dms_TradingName,dms_TradingName_List))","v":"VIRGINIA"}]
[null,null,null,null,null,null,null,null,null,null,null,null,null,null,null,null,null,null,null,null,null,"State",null,null,null,null,null,null,null,null,null,null,null,null,null,null,null,{"$f":"INDEX(dms_State_List,MATCH(dms_TradingName,dms_TradingName_List))","v":"Qld"},null,null,null,null,null,null,null,null,null,"Post code",null,null,null,null,null,null,null,null,null,null,null,null,"State",null,null,null,null,null,null,null,{"$f":"INDEX(dms_PState_List,MATCH(dms_TradingName,dms_TradingName_List))","v":"QLD"},null,null,null,null,null,null,null,null,null,"Post code"]
[]
[null,null,null,null,null,null,null,null,null,null,null,null,null,null,null,null,null,null,null,null,null,null,null,null,null,null,null,null,null,null,null,null,null,null,null,null,null,null,null,null,null,null,null,null,null,null,null,null,null,null,null,null,"`"]
[]
[null,null,null,null,null,null,null,null,null,null,null,null,null,null,null,null,null,null,null,null,null,"Contact Names"]
[]
[null,null,null,null,null,null,null,null,null,null,null,null,null,null,null,null,null,null,null,null,null,"Name",null,null,null,null,null,null,null,null,null,null,null,null,null,null,null,null,null,null,null,null,null,null,null,null,null,null,null,null,null,null,null,null,null,null,null,null,null,null,"Name"]
[null,null,null,null,null,null,null,null,null,null,null,null,null,null,null,null,null,null,null,null,null,"Phone",null,null,null,null,null,null,null,null,null,null,null,null,null,null,null,null,null,null,null,null,null,null,null,null,null,null,null,null,null,null,null,null,null,null,null,null,null,null,"Phone"]
[null,null,null,null,null,null,null,null,null,null,null,null,null,null,null,null,null,null,null,null,null,"Email",null,null,null,null,null,null,null,null,null,null,null,null,null,null,null,null,null,null,null,null,null,null,null,null,null,null,null,null,null,null,null,null,null,null,null,null,null,null,"Email"]
[]
[]
[]
[]
[null,null,null,null,null,null,null,null,null,null,null,null,null,null,null,null,"REGULATORY CONTROL PERIODS"]
[]
[]
[null,null,null,null,null,null,null,null,null,null,null,null,null,null,null,null,null,null,null,null,null,null,null,null,null,"Forthcoming period",null,null,null,null,null,null,null,null,null,null,null,"2027-28",null,null,null,null,null,null,null,null,{"$f":"FRCP_y2","v":"2028-29"},null,null,null,null,null,null,null,null,{"$f":"FRCP_y3","v":"2029-30"},null,null,null,null,null,null,null,null,{"$f":"FRCP_y4","v":"2030-31"},null,null,null,null,null,null,null,null,{"$f":"FRCP_y5","v":"2031-32"}]
[null,null,null,null,null,null,null,null,null,null,null,null,null,null,null,null,null,null,null,null,null,null,null,null,null,null,null,null,null,null,null,null,null,null,null,null,null,{"$f":"FRCP_y6","v":"2032-33"},null,null,null,null,null,null,null,null,{"$f":"FRCP_y7","v":"2033-34"},null,null,null,null,null,null,null,null,{"$f":"FRCP_y8","v":"2034-35"},null,null,null,null,null,null,null,null,{"$f":"FRCP_y9","v":"2035-36"},null,null,null,null,null,null,null,null,{"$f":"FRCP_y10","v":"2036-37"}]
[null,null,null,null,null,null,null,null,null,null,null,null,null,null,null,null,null,null,null,null,null,null,null,null,null,null,null,null,null,null,null,null,null,null,null,null,null,{"$f":"FRCP_y11","v":"2037-38"},null,null,null,null,null,null,null,null,{"$f":"FRCP_y12","v":"2038-39"},null,null,null,null,null,null,null,null,{"$f":"FRCP_y13","v":"2039-40"},null,null,null,null,null,null,null,null,{"$f":"FRCP_y14","v":"2040-41"},null,null,null,null,null,null,null,null,{"$f":"FRCP_y15","v":"2041-42"}]
[]
[null,null,null,null,null,null,null,null,null,null,null,null,null,null,null,null,null,null,null,null,null,null,null,"RESETS",null,"Current period",null,null,null,null,null,null,null,null,null,null,null,{"$f":"CRCP_y1","v":"2022-23"},null,null,null,null,null,null,null,null,{"$f":"CRCP_y2","v":"2023-24"},null,null,null,null,null,null,null,null,{"$f":"CRCP_y3","v":"2024-25"},null,null,null,null,null,null,null,null,{"$f":"CRCP_y4","v":"2025-26"},null,null,null,null,null,null,null,null,{"$f":"CRCP_y5","v":"2026-27"}]
[null,null,null,null,null,null,null,null,null,null,null,null,null,null,null,null,null,null,null,null,null,null,null,null,null,null,null,null,null,null,null,null,null,null,null,null,null,{"$f":"CRCP_y6","v":"2027-28"},null,null,null,null,null,null,null,null,{"$f":"CRCP_y7","v":"2028-29"},null,null,null,null,null,null,null,null,{"$f":"CRCP_y8","v":"2029-30"},null,null,null,null,null,null,null,null,{"$f":"CRCP_y9","v":"2030-31"},null,null,null,null,null,null,null,null,{"$f":"CRCP_y10","v":"2031-32"}]
[null,null,null,null,null,null,null,null,null,null,null,null,null,null,null,null,null,null,null,null,null,null,null,null,null,null,null,null,null,null,null,null,null,null,null,null,null,{"$f":"CRCP_y11","v":"2032-33"},null,null,null,null,null,null,null,null,{"$f":"CRCP_y12","v":"2033-34"},null,null,null,null,null,null,null,null,{"$f":"CRCP_y13","v":"2034-35"},null,null,null,null,null,null,null,null,{"$f":"CRCP_y14","v":"2035-36"},null,null,null,null,null,null,null,null,{"$f":"CRCP_y15","v":"2036-37"}]
[]
[null,null,null,null,null,null,null,null,null,null,null,null,null,null,null,null,null,null,null,null,null,null,null,null,null,"Previous period",null,null,null,null,null,null,null,null,null,null,null,{"$f":"PRCP_y1","v":"2017-18"},null,null,null,null,null,null,null,null,{"$f":"PRCP_y2","v":"2018-19"},null,null,null,null,null,null,null,null,{"$f":"PRCP_y3","v":"2019-20"},null,null,null,null,null,null,null,null,{"$f":"PRCP_y4","v":"2020-21"},null,null,null,null,null,null,null,null,{"$f":"PRCP_y5","v":"2021-22"}]
[null,null,null,null,null,null,null,null,null,null,null,null,null,null,null,null,null,null,null,null,null,null,null,null,null,null,null,null,null,null,null,null,null,null,null,null,null,{"$f":"PRCP_y6","v":"2022-23"},null,null,null,null,null,null,null,null,{"$f":"PRCP_y7","v":"2023-24"},null,null,null,null,null,null,null,null,{"$f":"PRCP_y8","v":"2024-25"},null,null,null,null,null,null,null,null,{"$f":"PRCP_y9","v":"2025-26"},null,null,null,null,null,null,null,null,{"$f":"PRCP_y10","v":"2026-27"}]
[null,null,null,null,null,null,null,null,null,null,null,null,null,null,null,null,null,null,null,null,null,null,null,null,null,null,null,null,null,null,null,null,null,null,null,null,null,{"$f":"PRCP_y11","v":"2027-28"},null,null,null,null,null,null,null,null,{"$f":"PRCP_y12","v":"2028-29"},null,null,null,null,null,null,null,null,{"$f":"PRCP_y13","v":"2029-30"},null,null,null,null,null,null,null,null,{"$f":"PRCP_y14","v":"2030-31"},null,null,null,null,null,null,null,null,{"$f":"PRCP_y15","v":"2031-32"}]
[]
[null,null,null,null,null,null,null,null,null,null,null,null,null,null,null,null,null,null,null,null,null,null,null,null,null,"Commencing year",null,null,null,null,null,null,null,null,null,null,null,"2017-18"]
[null,null,null,null,null,null,null,null,null,null,null,null,null,null,null,null,null,null,null,null,null,null,null,"ANNUAL RINS"]
[null,null,null,null,null,null,null,null,null,null,null,null,null,null,null,null,null,null,null,null,null,null,null,null,null,"Final year",null,null,null,null,null,null,null,null,null,null,null,"2024-25"]
[]
[]
[]
[null,null,null,null,null,null,null,null,null,null,null,null,null,null,null,null,"SUBMISSION DETAILS"]
[]
[null,null,null,null,null,null,null,null,null,null,null,null,null,null,null,null,null,null,null,null,null,null,null,null,null,"RIN type",null,null,null,null,null,null,null,null,null,null,null,{"$f":"INDIRECT(dms_Model)","v":"Annual Reporting"}]
[]
[null,null,null,null,null,null,null,null,null,null,null,null,null,null,null,null,null,null,null,null,null,null,null,null,null,"Source",null,null,null,null,null,null,null,null,null,null,null,"Reporting"]
[]
[null,null,null,null,null,null,null,null,null,null,null,null,null,null,null,null,null,null,null,null,null,null,null,"THIS FILE",null,"Data Quality",null,null,null,null,null,null,null,null,null,null,null,"Consolidated"]
[]
[null,null,null,null,null,null,null,null,null,null,null,null,null,null,null,null,null,null,null,null,null,null,null,null,null,"Confidentiality Status",null,null,null,null,null,null,null,null,null,null,null,"Public"]
[]
[null,null,null,null,null,null,null,null,null,null,null,null,null,null,null,null,null,null,null,null,null,null,null,null,null,"Amended RIN \nAmendment Reason",null,null,null,null,null,null,null,null,null,null,null,"."]
[]
[]
[]
[null,null,null,null,null,null,null,null,null,null,null,null,null,null,null,null,null,null,null,null,null,null,null,null,null,"Submission Date",null,null,null,null,null,null,null,null,null,null,null,"dd/mm/yy",null,null,null,null,null,null,null,null,null,null,null,null,null,null,null,null,null,"Please enter date this file submitted to AER"]

{"sheet":"7.4 Shared Assets","index":3,"n_rows":28,"n_cols":11,"rows_kept":28,"cut":false,"hidden":false,"merged":[[6,1,7,1],[6,2,7,2],[6,3,6,10]]}
[null,"REGULATORY REPORTING STATEMENT"]
[null,{"$f":"dms_TradingName","v":"Powerlink"}]
[null,{"$f":"CONCATENATE(\"REGULATORY PERIOD FROM \", FRCP_y1,\" TO \",FRCP_y5)","v":"REGULATORY PERIOD FROM 2027-28 TO 2031-32"}]
[null,"7.4 SHARED ASSETS"]
[]
[null,"7.4.1 - TOTAL UNREGULATED REVENUE EARNED WITH SHARED ASSETS "]
[null,"Name of shared asset unregulated service","Description of shared assets used to provide the service","REVENUE\n($0's, nominal)"]
[null,null,null,{"$f":"dms_y1","v":"2017-18"},{"$f":"dms_y2","v":"2018-19"},{"$f":"dms_y3","v":"2019-20"},{"$f":"dms_y4","v":"2020-21"},{"$f":"dms_y5","v":"2021-22"},{"$f":"dms_y6","v":"2022-23"},{"$f":"dms_y7","v":"2023-24"},{"$f":"dms_y8","v":"2024-25"}]
[null,"Oil Testing & Laboratory Services","Oil lab, tools and equipment.",15935.660000000098,120048.02999999993,247447.77999999997,90278,143540,216423,354699,225381]
[null,"Property Rentals ","Relevant properties and land.",525693.96000000054,565497.52999999991,320015.18000000034,546902,672422,323111,287941,509566]
[null,"Tower Access","Transmission and telecommunications towers.",2331677.7999999998,2417718.6800000002,2208640.61,2054121.61,2088763.3900000001,2151426.2917000004,1609133.5700000003,1698268.38]
[]
[]
[]
[]
[]
[]
[]
[]
[]
[]
[]
[]
[]
[]
[]
[null,"7.4.2 - SHARED ASSET UNREGULATED SERVICES - APPORTIONMENT METHODOLOGY"]
[null,"Name of shared asset unregulated service for which revenues were apportioned","Apportionment methodology"]

{"sheet":"8.2 Capex","index":4,"n_rows":61,"n_cols":5,"rows_kept":61,"cut":false,"hidden":false,"merged":[[7,2,7,4],[8,2,8,4]]}
[null,{"$f":"(LOOKUP(dms_Model,dms_Model_List,dms_Worksheet_List))","v":"NEW HISTORICAL ANNUAL REPORTING"}]
[null,{"$f":"dms_TradingName","v":"Powerlink"}]
[null,{"$f":"CONCATENATE(\"REGULATORY PERIOD FROM \", FRCP_y1,\" TO \",FRCP_y5)","v":"REGULATORY PERIOD FROM 2027-28 TO 2031-32"}]
[null,"8.2 - CAPEX"]
[]
[null,"8.2.7 - IMMEDIATE EXPENSING OF CAPEX"]
[null,"AS COMMISSIONED"]
[null,null,"EXPENDITURE"]
[null,null,"($0's, nominal)"]
[null,"Asset class",{"$f":"dms_y6","v":"2022-23"},{"$f":"dms_y7","v":"2023-24"},{"$f":"dms_y8","v":"2024-25"}]
[null,"Transmission Lines - Overhead",1733029.221586877,648353.79573057522,340713.87304965302]
[null,"Transmission Lines - Underground",0,0,112672.12301418255]
[null,"Transmission Lines - Refit",818506.04570644663,2578906.3849101267,425016.4995779504]
[null,"Substations Primary Plant",15515520.368093008,8810755.0211385991,14031875.710675156]
[null,"Substations Secondary Systems",12285562.514828023,12693587.505962243,18253384.84289344]
[null,"Communications Other Assets",146867.10522467695,481100.80965412129,534341.89080052497]
[null,"Comms - Civil Works",0,0,0]
[null,"Network Switching Centres",0,0,0]
[null,"Land",0,0,0]
[null,"Easements",0,0,0]
[null,"Commercial Buildings",0,0,0]
[null,"Computer Equipment",3315910.1696892022,2365090.5817474579,3324396.0939955814]
[null,"Office Furniture & Miscellaneous",167164.36897506137,149215.98806259464,755517.27515184332]
[null,"Office Machines",24647.839289416082,2545.4048000720472,4898.1916771289334]
[null,"Vehicles",2535831.771294733,2821792.7898504878,3016914.2167618563]
[null,"Moveable Plant",729402.02034878486,1481046.2304907409,758852.36368106306]
[null,"Insurance Spares",152554.78637271709,0,0]
[null,"Spare straight-line tax asset class",0,0,0]
[null,"Buildings - capital works",0,0,132108.13452821487]
[null,"In-house software",843010.1656330406,985199.57865900011,4311553.5028684102]
[null,"Equity raising costs",0,0,0]
[]
[]
[]
[]
[]
[]
[]
[]
[]
[]
[]
[]
[]
[]
[]
[]
[]
[]
[]
[]
[]
[]
[]
[]
[]
[]
[]
[]
[]
[null,"Total",{"$f":"SUM(C11:C60)","v":38268006.377041988},{"$f":"SUM(D11:D60)","v":33017594.091006018},{"$f":"SUM(E11:E60)","v":46002244.718675002}]

{"sheet":"AER CF","index":5,"n_rows":76,"n_cols":25,"rows_kept":76,"cut":false,"hidden":true,"merged":[[41,38,41,59],[41,69,41,90],[3,1,3,22],[39,38,39,59],[39,69,39,90],[40,38,40,59],[40,69,40,90]]}
[null,"AER CONDITIONAL FORMATTING"]
[]
[null,"CELLS FLAGED \"Y\" and greyed out will be greyed out in the worksheets."]
[null,"CONDITIONAL FORMATTING MAP"]
[null,null,null,null,null,"=INDEX(dms_CF_3.6.1, MATCH(dms_TradingName,dms_CF_TradingName))=\"Y\"","=INDEX(dms_CF_3.6.5, MATCH(dms_TradingName,dms_CF_TradingName))=\"Y\"","=INDEX(dms_CF_3.6.6.1, MATCH(dms_TradingName,dms_CF_TradingName))=\"Y\"","=INDEX(dms_CF_3.6.6.2, MATCH(dms_TradingName,dms_CF_TradingName))=\"Y\"","=INDEX(dms_CF_3.6.6.3, MATCH(dms_TradingName,dms_CF_TradingName))=\"Y\"","=INDEX(dms_CF_3.6.7.1, MATCH(dms_TradingName,dms_CF_TradingName))=\"Y\"","=INDEX(dms_CF_3.6.7.2, MATCH(dms_TradingName,dms_CF_TradingName))=\"Y\"","=INDEX(dms_CF_3.6.7.3, MATCH(dms_TradingName,dms_CF_TradingName))=\"Y\"","=INDEX(dms_CF_3.6.7.4, MATCH(dms_TradingName,dms_CF_TradingName))=\"Y\"","=INDEX(dms_CF_3.6.8, MATCH(dms_TradingName,dms_CF_TradingName))=\"Y\"","=INDEX(dms_CF_4.1, MATCH(dms_TradingName,dms_CF_TradingName))=\"Y\"","=INDEX(dms_CF_6.8, MATCH(dms_TradingName,dms_CF_TradingName))=\"Y\"","=INDEX(dms_CF_7.12, MATCH(dms_TradingName,dms_CF_TradingName))=\"Y\"","=INDEX(dms_CF_8.1_A, MATCH(dms_TradingName,dms_CF_TradingName))=\"Y\"","=INDEX(dms_CF_8.1_B, MATCH(dms_TradingName,dms_CF_TradingName))=\"Y\"",{"$f":"INDEX(dms_CF_8.1_Neg, MATCH(dms_TradingName,dms_CF_TradingName))=\"Y\"","v":true},"=INDEX(dms_CF_4.4.1_Neg, MATCH(dms_TradingName,dms_CF_TradingName))=\"Y\"",null,null,"=INDEX(dms_CF_F10, MATCH(dms_TradingName,dms_CF_TradingName))=\"Y\""]
[null,"dms_CF_TradingName","JurisdictionList","Sector","Segment","dms_CF_3.6.1","dms_CF_3.6.5","dms_CF_3.6.6.1","dms_CF_3.6.6.2","dms_CF_3.6.6.3","dms_CF_3.6.7.1","dms_CF_3.6.7.2","dms_CF_3.6.7.3","dms_CF_3.6.7.4","dms_CF_3.6.8","dms_CF_4.1","dms_CF_6.8 (set from dms_MAIFI_flag)","dms_CF_7.12","dms_CF_8.1_A  (and 8.4)","dms_CF_8.1_B  (and 8.4)","dms_CF_8.1_Neg  (and 8.4)","dms_CF_4.4.1","dms_CF_MAIFI_flag (set from dms_MAIFI_flag)","9.5 TUOS (set from Jurisdiction)","dms_CF_F10"]
[null,"Amadeus","NT","Gas","Transmission","-","-","-","-","-","-","-","-","-","-","-","-","-","-","-","-","-","-","-","-"]
[null,"APA GasNet","Vic","Gas","Transmission","-","-","-","-","-","-","-","-","-","-","-","-","-","-","-","-","-","-","-","-"]
[null,"Ausgrid","NSW","Electricity","Distribution",null,"Y","N","N","N","N","N","N","Y","N","N",{"$f":"IFERROR(IF(dms_MAIFI_flag=\"Yes\",\"N\",\"Y\"),\"Y\")","v":"Y"},"Y","N","Y","Y","N",{"$f":"IFERROR(LEFT(dms_MAIFI_flag),\"N\")","v":"N"},{"$f":"IF('AER CF'!$C7=\"Vic\",\"Y\",\"N\")","v":"N"}]
[null,"Ausgrid (Tx Assets)","NSW","Electricity","Distribution",null,"Y","N","N","N","N","N","N","Y","N","N",{"$f":"IFERROR(IF(dms_MAIFI_flag=\"Yes\",\"N\",\"Y\"),\"Y\")","v":"Y"},"Y","N","Y","Y","N",{"$f":"IFERROR(LEFT(dms_MAIFI_flag),\"N\")","v":"N"},{"$f":"IF('AER CF'!$C8=\"Vic\",\"Y\",\"N\")","v":"Y"}]
[null,"AusNet (D)","Vic","Electricity","Distribution",null,"N","N",null,null,"N","N","N","N","N","N",{"$f":"IFERROR(IF(dms_MAIFI_flag=\"Yes\",\"N\",\"Y\"),\"Y\")","v":"Y"},"N","N","N","Y","N",{"$f":"IFERROR(LEFT(dms_MAIFI_flag),\"N\")","v":"N"},{"$f":"IF('AER CF'!$C9=\"Vic\",\"Y\",\"N\")","v":"N"}]
[null,"AusNet (T)","Vic","Electricity","Transmission",null,"N",null,null,null,"N","N","N","N","N","Y",{"$f":"IFERROR(IF(dms_MAIFI_flag=\"Yes\",\"N\",\"Y\"),\"Y\")","v":"Y"},"N","N","N","Y","N",{"$f":"IFERROR(LEFT(dms_MAIFI_flag),\"N\")","v":"N"},{"$f":"IF('AER CF'!$C10=\"Vic\",\"Y\",\"N\")","v":"N"}]
[null,"Australian Distribution Co.","NSW","Electricity","Distribution","N","N","N","N",null,"N","N","N","N","N","N",{"$f":"IFERROR(IF(dms_MAIFI_flag=\"Yes\",\"N\",\"Y\"),\"Y\")","v":"Y"},"N","N","N","N","N",{"$f":"IFERROR(LEFT(dms_MAIFI_flag),\"N\")","v":"N"},{"$f":"IF('AER CF'!$C13=\"Vic\",\"Y\",\"N\")","v":"N"}]
[null,"Australian Distribution Co. (Vic)","Vic","Electricity","Distribution","N","N","N","N",null,"N","N","N","N","N","N",{"$f":"IFERROR(IF(dms_MAIFI_flag=\"Yes\",\"N\",\"Y\"),\"Y\")","v":"Y"},"N","N","N","N","N",{"$f":"IFERROR(LEFT(dms_MAIFI_flag),\"N\")","v":"N"},{"$f":"IF('AER CF'!$C14=\"Vic\",\"Y\",\"N\")","v":"Y"}]
[null,"CitiPower","Vic","Electricity","Distribution",null,"N","N",null,null,"N","N","N","N","N","N",{"$f":"IFERROR(IF(dms_MAIFI_flag=\"Yes\",\"N\",\"Y\"),\"Y\")","v":"Y"},"N","N","N","Y","N",{"$f":"IFERROR(LEFT(dms_MAIFI_flag),\"N\")","v":"N"},{"$f":"IF('AER CF'!$C15=\"Vic\",\"Y\",\"N\")","v":"Y"}]
[null,"Directlink","Qld","Electricity","Transmission",null,"N",null,null,null,"N","N","N","N","N","-",{"$f":"IFERROR(IF(dms_MAIFI_flag=\"Yes\",\"N\",\"Y\"),\"Y\")","v":"Y"},"N","N","Y","Y","N",{"$f":"IFERROR(LEFT(dms_MAIFI_flag),\"N\")","v":"N"},{"$f":"IF('AER CF'!$C16=\"Vic\",\"Y\",\"N\")","v":"N"}]
[null,"ElectraNet","SA","Electricity","Transmission",null,"N",null,null,null,"N","N","N","N","N","-",{"$f":"IFERROR(IF(dms_MAIFI_flag=\"Yes\",\"N\",\"Y\"),\"Y\")","v":"Y"},"N","N","Y","Y","N",{"$f":"IFERROR(LEFT(dms_MAIFI_flag),\"N\")","v":"N"},{"$f":"IF('AER CF'!$C17=\"Vic\",\"Y\",\"N\")","v":"N"}]
[null,"Endeavour Energy","NSW","Electricity","Distribution",null,"Y","N","Y","Y","N","N","N","Y","N","N",{"$f":"IFERROR(IF(dms_MAIFI_flag=\"Yes\",\"N\",\"Y\"),\"Y\")","v":"Y"},"Y","N","Y","Y","Y",{"$f":"IFERROR(LEFT(dms_MAIFI_flag),\"N\")","v":"N"},{"$f":"IF('AER CF'!$C18=\"Vic\",\"Y\",\"N\")","v":"N"}]
[null,"Energex","Qld","Electricity","Distribution",null,"Y","N",null,null,"N","N","N","N","N","N",{"$f":"IFERROR(IF(dms_MAIFI_flag=\"Yes\",\"N\",\"Y\"),\"Y\")","v":"Y"},"Y","N","Y","Y","Y",{"$f":"IFERROR(LEFT(dms_MAIFI_flag),\"N\")","v":"N"},{"$f":"IF('AER CF'!$C19=\"Vic\",\"Y\",\"N\")","v":"N"}]
[null,"Ergon Energy","Qld","Electricity","Distribution",null,"Y","N","Y","Y","N","N","N","N","N","N",{"$f":"IFERROR(IF(dms_MAIFI_flag=\"Yes\",\"N\",\"Y\"),\"Y\")","v":"Y"},"Y","N","Y","Y","N",{"$f":"IFERROR(LEFT(dms_MAIFI_flag),\"N\")","v":"N"},{"$f":"IF('AER CF'!$C20=\"Vic\",\"Y\",\"N\")","v":"N"}]
[null,"Essential Energy","NSW","Electricity","Distribution",null,"Y","N","Y","Y","N","N","N","Y","N","N",{"$f":"IFERROR(IF(dms_MAIFI_flag=\"Yes\",\"N\",\"Y\"),\"Y\")","v":"Y"},"Y","N","Y","Y","N",{"$f":"IFERROR(LEFT(dms_MAIFI_flag),\"N\")","v":"N"},{"$f":"IF('AER CF'!$C21=\"Vic\",\"Y\",\"N\")","v":"N"}]
[null,"Evoenergy Distribution","ACT","Electricity","Distribution",null,"Y","N","Y","Y","Y","Y","N","Y","N","Y",{"$f":"IFERROR(IF(dms_MAIFI_flag=\"Yes\",\"N\",\"Y\"),\"Y\")","v":"Y"},"Y","N","Y","Y","N",{"$f":"IFERROR(LEFT(dms_MAIFI_flag),\"N\")","v":"N"},{"$f":"IF('AER CF'!$C22=\"Vic\",\"Y\",\"N\")","v":"N"}]
[null,"Evoenergy Distribution (Tx Assets)","ACT","Electricity","Distribution",null,"Y","N","Y","Y","Y","Y","N","Y","N","Y",{"$f":"IFERROR(IF(dms_MAIFI_flag=\"Yes\",\"N\",\"Y\"),\"Y\")","v":"Y"},"Y","N","Y","Y","N",{"$f":"IFERROR(LEFT(dms_MAIFI_flag),\"N\")","v":"N"},{"$f":"IF('AER CF'!$C23=\"Vic\",\"Y\",\"N\")","v":"N"}]
[null,"Jemena Electricity","Vic","Electricity","Distribution",null,"N","N",null,null,"N","N","N","N","N","N",{"$f":"IFERROR(IF(dms_MAIFI_flag=\"Yes\",\"N\",\"Y\"),\"Y\")","v":"Y"},"N","N","N","Y","N",{"$f":"IFERROR(LEFT(dms_MAIFI_flag),\"N\")","v":"N"},{"$f":"IF('AER CF'!$C25=\"Vic\",\"Y\",\"N\")","v":"Y"}]
[null,"JGN","Vic","Gas","Distribution","-","-","-","-","-","-","-","-","-","-","-","-","-","-","-","-","-","-","-","-"]
[null,"Murraylink","SA","Electricity","Transmission",null,"N",null,null,null,"N","N","N","N","N","-",{"$f":"IFERROR(IF(dms_MAIFI_flag=\"Yes\",\"N\",\"Y\"),\"Y\")","v":"Y"},"N","N","Y","Y","N",{"$f":"IFERROR(LEFT(dms_MAIFI_flag),\"N\")","v":"N"},{"$f":"IF('AER CF'!$C26=\"Vic\",\"Y\",\"N\")","v":"N"}]
[null,"Power and Water","NT","Electricity","Distribution",null,"N","N",null,null,"N","Y","N","N","N","Y",{"$f":"IFERROR(IF(dms_MAIFI_flag=\"Yes\",\"N\",\"Y\"),\"Y\")","v":"Y"},"Y","Y","Y","Y","N",{"$f":"IFERROR(LEFT(dms_MAIFI_flag),\"N\")","v":"N"},{"$f":"IF('AER CF'!$C27=\"Vic\",\"Y\",\"N\")","v":"N"}]
[null,"Powercor Australia","Vic","Electricity","Distribution",null,"N","N",null,null,"N","N","N","N","N","N",{"$f":"IFERROR(IF(dms_MAIFI_flag=\"Yes\",\"N\",\"Y\"),\"Y\")","v":"Y"},"N","N","N","Y","N",{"$f":"IFERROR(LEFT(dms_MAIFI_flag),\"N\")","v":"N"},{"$f":"IF('AER CF'!$C28=\"Vic\",\"Y\",\"N\")","v":"Y"}]
[null,"Powerlink","Qld","Electricity","Transmission",null,"N",null,null,null,"N","N","N","N","N","-",{"$f":"IFERROR(IF(dms_MAIFI_flag=\"Yes\",\"N\",\"Y\"),\"Y\")","v":"Y"},"N","N","Y","Y","N",{"$f":"IFERROR(LEFT(dms_MAIFI_flag),\"N\")","v":"N"},{"$f":"IF('AER CF'!$C29=\"Vic\",\"Y\",\"N\")","v":"N"}]
[null,"Roma to Brisbane Pipeline","Qld","Gas","Transmission","-","-","-","-","-","-","-","-","-","-","-","-","-","-","-","-","-","-","-","-"]
[null,"SA Power Networks","SA","Electricity","Distribution",null,"Y","N",null,null,"N","N","N","N","N","N",{"$f":"IFERROR(IF(dms_MAIFI_flag=\"Yes\",\"N\",\"Y\"),\"Y\")","v":"Y"},"Y","N","Y","N","N",{"$f":"IFERROR(LEFT(dms_MAIFI_flag),\"N\")","v":"N"},{"$f":"IF('AER CF'!$C31=\"Vic\",\"Y\",\"N\")","v":"N"}]
[null,"TasNetworks (D)","Tas","Electricity","Distribution",null,"Y","N",null,null,"N","N","N","N","N","N",{"$f":"IFERROR(IF(dms_MAIFI_flag=\"Yes\",\"N\",\"Y\"),\"Y\")","v":"Y"},"Y","N","Y","Y","N",{"$f":"IFERROR(LEFT(dms_MAIFI_flag),\"N\")","v":"N"},{"$f":"IF('AER CF'!$C32=\"Vic\",\"Y\",\"N\")","v":"N"}]
[null,"TasNetworks (T)","Tas","Electricity","Transmission",null,"N",null,null,null,"N","N","N","N","N","-",{"$f":"IFERROR(IF(dms_MAIFI_flag=\"Yes\",\"N\",\"Y\"),\"Y\")","v":"Y"},"N","N","Y","Y","N",{"$f":"IFERROR(LEFT(dms_MAIFI_flag),\"N\")","v":"N"},{"$f":"IF('AER CF'!$C33=\"Vic\",\"Y\",\"N\")","v":"N"}]
[null,"TransGrid","NSW","Electricity","Transmission",null,"N",null,null,null,"N","N","N","N","N","-",{"$f":"IFERROR(IF(dms_MAIFI_flag=\"Yes\",\"N\",\"Y\"),\"Y\")","v":"Y"},"N","N","Y","Y","N",{"$f":"IFERROR(LEFT(dms_MAIFI_flag),\"N\")","v":"N"},{"$f":"IF('AER CF'!$C34=\"Vic\",\"Y\",\"N\")","v":"N"}]
[null,"United Energy","Vic","Electricity","Distribution",null,"N","N",null,null,"N","N","N","N","N","N",{"$f":"IFERROR(IF(dms_MAIFI_flag=\"Yes\",\"N\",\"Y\"),\"Y\")","v":"Y"},"N","N","N","Y","N",{"$f":"IFERROR(LEFT(dms_MAIFI_flag),\"N\")","v":"N"},{"$f":"IF('AER CF'!$C35=\"Vic\",\"Y\",\"N\")","v":"Y"}]
[]
[]
[null,"Confidential"]
[null,"Amended"]
[]
[null,"Worksheet 6.2 STPIS reliability"]
[null,"Formula",null,null,null,"Applied to:"]
[]
[null,"=INDEX(dms_CBD_flag,MATCH(dms_TradingName,dms_TradingName_List))=\"NO\"",null,null,null,"$D$11,$D$17,$D$23,$D$33,$D$39,$D$45,$D$55,$D$61,$D$67,$D$77,$D$83,$D$89"]
[null,"=INDEX(dms_Urban_flag,MATCH(dms_TradingName,dms_TradingName_List))=\"NO\"",null,null,null,"$D$12,$D$18,$D$24,$D$56,$D$62,$D$78,$D$68,$D$84"]
[null,"=INDEX(dms_ShortRural_flag,MATCH(dms_TradingName,dms_TradingName_List))=\"NO\"",null,null,null,"$D$13,$D$19,$D$25,$D$57,$D$63,$D$69,$D$79,$D$85"]
[null,"=INDEX(dms_LongRural_flag,MATCH(dms_TradingName,dms_TradingName_List))=\"NO\"",null,null,null,"$D$14,$D$20,$D$26,$D$58,$D$64,$D$65,$D$70,$D$71,$D$80,$D$86"]
[null,"=INDEX(dms_FeederType_5_flag,MATCH(dms_TradingName,dms_TradingName_List))=\"NO\"",null,null,null,"$D$87,$D$81,$D$71,$D$65,$D$59,$D$49,$D$43,$D$37,$D$21,$D$15"]
[null,"=dms_MAIFI_Flag=\"No\"",null,null,null,"$D$55:$D$72"]
[]
[]
[null,"Business & other details"]
[null,"=(INDEX(dms_Model_Span,MATCH(dms_Model,dms_Model_List))>1)"]
[null,"=(INDEX(dms_Model_Span,MATCH(dms_Model,dms_Model_List))=1)"]
[]
[]
[null,"STYLES IN USE"]
[null,"HEADING ONE","dms_1"]
[null,"HEADING TWO","dms_2"]
[null,"HEADING THREE","dms_3"]
[null,"HEADING FOUR","dms_4"]
[null,"HEADING FIVE","dms_5"]
[null,5.1109999999999998,"dms_NUM"]
[null,5.45E-2,"dms_NUM%"]
[null,5.5555000000000003,"dms_NUM3d"]
[null,"Text description","dms_Row_Locked"]
[null,"Text description","dms_Row1"]
[null,"Text description","dms_Row2"]
[null,"Total","dms_T1"]
[null,"Total","dms_T2"]
[null,"EXPENSES","dms_BH"]
[null,2019,"dms_BY1"]
[null,2019,"dms_BY2"]
[null,"VOLUMES","dms_GH"]
[null,2019,"dms_GY1"]
[null,2019,"dms_GY2"]

{"sheet":"AER NRs","index":6,"n_rows":232,"n_cols":16,"rows_kept":232,"cut":false,"hidden":true,"merged":[[195,1,196,1],[199,1,200,1],[208,1,213,1],[135,1,150,1],[152,1,158,1],[160,1,174,1],[176,1,177,1],[179,1,184,1],[191,1,192,1],[65,1,78,1],[84,1,97,1],[100,1,107,1],[110,1,115,1],[118,1,132,1],[4,1,28,1],[32,1,55,1],[33,10,35,10],[33,36,33,57],[33,67,33,88],[34,36,34,57],[34,67,34,88],[35,36,35,57],[35,67,35,88],[36,10,40,10],[44,10,45,10]]}
[null,"AER NAMED RANGES"]
[]
[null,"DROP DOWN SELECTORS USED IN WORKBOOKS"]
[]
[null,"COVER SHEET","dms_DataQuality_List","dms_Confid_status_List"]
[null,null,"-- select --","-- select --"]
[null,null,"Actual","Public"]
[null,null,"Estimate","Confidential"]
[null,null,"Consolidated"]
[]
[]
[null,null,"For all files either AER or business needs to be able to specify the type of submission","For PTRM & RFM templates we must provide a choice in case they change their form of control - otherwise it is drawn from the business specific lookup table above."]
[null,null,"dms_SourceList","dms_FormControl_Choices"]
[null,null,"-- select --","Revenue cap"]
[null,null,"After appeal","Revenue yield"]
[null,null,"Draft decision","Tariff cap"]
[null,null,"Final decision","Weighted average price cap"]
[null,null,"PTRM update 1"]
[null,null,"PTRM update 2"]
[null,null,"PTRM update 3"]
[null,null,"PTRM update 4"]
[null,null,"PTRM update 5"]
[null,null,"PTRM update 6"]
[null,null,"PTRM update 7"]
[null,null,"Reallocated"]
[null,null,"Recast"]
[null,null,"Regulatory proposal"]
[null,null,"Reporting"]
[null,null,"Revised regulatory proposal"]
[]
[]
[null,null,null,null,null,null,null,null,null,null,"This is used to create an image to insert on 6.3 STPIS sheet - not for dropdown lists.",null,null,"GAS"]
[null,"CA & RESET RINS \nDNSP","dms_DNSP_020301_SubstationType","dms_DNSP_020301_ProjectType","dms_DNSP_020301_ProjectTrigger","dms_DNSP_020302_ProjectType","dms_DNSP_020302_ProjectTrigger","dms_STPIS_Exclusion_List","dms_Reason_Interruption","dms_Reason_Interruption_Detailed","Reason for interruption",null,null,"dms_N0205_AssetType"]
[null,null,"Subtransmission substation","New substation establishment","Demand growth","New line on new route - single circuit","Demand growth","Weather","Animal","Animal impact","Animal","Animal impact",null,"Cast Iron"]
[null,null,"Zone substation","Substation upgrade - capacity"," Voltage issues","New line on new route - dual circuit"," Voltage issues","Equipment failure","Asset failure","Animal nesting/burrowing, etc and other",null,"Animal nesting/burrowing, etc and other",null,"PVC"]
[null,null,"Switching station","Substation upgrade - voltage"," Reactive power issue","New line on new route - other"," Reactive power issue","Operational error","Other","Other",null,"Other",null,"Polyamide"]
[null,null,"Other","Other"," Fault level issues","Line rebuild over existing route - single circuit"," Fault level issues","Vegetation","Overloads","LV","Asset failure","LV",null,"High density polyethylene (80)"]
[null,null,null,null," Safety","Line rebuild over existing route - dual circuit"," Net market benefit","Animals","Planned","Distribution substation",null,"Distribution substation",null,"High density polyethylene (100)"]
[null,null,null,null," Environment","Reconductor - Single circuit"," Safety","Third party impacts","Network business","HV",null,"HV",null,"High density polyethylene (250)"]
[null,null,null,null," Other","Reconductor - Dual circuit"," Environment","Transmission failure","Third party","Zone substation",null,"Zone substation",null,"High density polyethylene (575)"]
[null,null,null,null,null,"Reconductor - Other"," Other","Load shedding","Unknown","Subtransmission",null,"Subtransmission",null,"Medium density polyethylene"]
[null,null,null,null,null,"Line upgrade - raising/retensoring",null,"Inter-distributor connection failure","Vegetation","insert description of 'other'","Other","insert description of 'other'",null,"Unprotected steel"]
[null,null,null,null,null,"Line upgrade - voltage upgrade",null,"Other","Weather","Network error","Overloads",null,null,"Protected steel"]
[null,null,null,null,null,"Line upgrade - capacity",null,null,"2 - STPIS Exclusion (3.3)(a)","Switching and protection error","Planned",null,null,"Other"]
[null,null,null,null,null,"String spare circuit",null,null,"3 - STPIS Exclusion (3.3)(a)","Fire","Network business","Network error"]
[null,null,null,null,null,"Other",null,null,"4 - STPIS Exclusion (3.3)(a)","Other",null,"Switching and protection error"]
[null,null,null,null,null,null,null,null,"5 - STPIS Exclusion (3.3)(a)","Dig-in","Third party","Fire"]
[null,null,null,null,null,null,null,null,"6 - STPIS Exclusion (3.3)(a)","Unauthorised access",null,"Other"]
[null,null,null,null,null,null,null,null,"7 - STPIS Exclusion (3.3)(a)","Vehicle impact",null,"Dig-in"]
[null,null,null,null,null,null,null,null,null,"Unknown",null,"Unauthorised access"]
[null,null,null,null,null,null,null,null,null,"Blow-in/Fall-in - NSP responsibility",null,"Vehicle impact"]
[null,null,null,null,null,null,null,null,null,"Grow-in - NSP responsibility","Unknown","Unknown"]
[null,null,null,null,null,null,null,null,null,"Blow-in/Fall-in - Other responsible party","Vegetation","Blow-in/Fall-in - NSP responsibility"]
[null,null,null,null,null,null,null,null,null,"Grow-in - Other responsible party",null,"Grow-in - NSP responsibility"]
[null,null,null,null,null,null,null,null,null,null,null,"Blow-in/Fall-in - Other responsible party"]
[null,null,null,null,null,null,null,null,null,null,null,"Grow-in - Other responsible party"]
[null,null,null,null,null,null,null,null,null,null,"Weather"]
[null,null,null,null,null,null,null,null,null,null,"2 - STPIS Exclusion (3.3)(a)"]
[null,null,null,null,null,null,null,null,null,null,"3 - STPIS Exclusion (3.3)(a)"]
[null,null,null,null,null,null,null,null,null,null,"4 - STPIS Exclusion (3.3)(a)"]
[null,null,null,null,null,null,null,null,null,null,"5 - STPIS Exclusion (3.3)(a)"]
[null,null,null,null,null,null,null,null,null,null,"6 - STPIS Exclusion (3.3)(a)"]
[null,null,null,null,null,null,null,null,null,null,"7 - STPIS Exclusion (3.3)(a)"]
[]
[]
[null,"CA & RESET RINS \nTNSP ","dms_TNSP_0203_SubstationType","dms_TNSP_020301_ProjectType","dms_TNSP_020301_ProjectTrigger","dms_TNSP_020302_ProjectType","dms_TNSP_0203_ProjectTrigger"]
[null,null,"Terminal station","New substation establishment","Demand growth","New line on new route - single circuit","Demand growth"]
[null,null,"Switching station","Capacity upgrade"," Voltage issues","New line on new route - dual circuit"," Voltage issues"]
[null,null,"Transmission substation","Voltage upgrade"," Reactive power issue","New line on new route - other"," Reactive power issue"]
[null,null,"Other","Other"," Fault level issues","Line rebuild over existing route - single circuit"," Fault level issues"]
[null,null,null,null,"Net market benefit","Line rebuild over existing route - dual circuit"," Net market benefit"]
[null,null,null,null," Safety","Reconductor - Single circuit"," Safety"]
[null,null,null,null," Environment","Reconductor - Dual circuit"," Environment"]
[null,null,null,null," Other","Reconductor - Other"," Other"]
[null,null,null,null,null,"Line upgrade - raising/retensoring"]
[null,null,null,null,null,"Line upgrade - voltage upgrade"]
[null,null,null,null,null,"Line upgrade - capacity"]
[null,null,null,null,null,"String spare circuit"]
[null,null,null,null,null,"Other"]
[]
[]
[]
[null,"NAMED RANGES USED IN ETL PROCESS"]
[null,null,null,null,null,null,null,null,null,null,null,null,"GAS ARR & RESET"]
[null,"CA & RESET RINS \nDNSP ONLY","dms_020303_01_UOM","dms_020501_01_UOM","dms_020501_02_UOM","dms_020501_03_UOM","dms_020501_04_UOM","dms_020701_01_UOM","dms_020701_02_UOM","dms_020701_01_Rows","dms_040102_01_UOM","dms_040102_04_UOM","dms_S140101_UOM","dms_S140201_UOM","dms_E050201_UOM","dms_E050202_UOM"]
[null,null,"Circuit line length in km","0's","0's","0's","0's","km","km","Route line length within zone","0's","days","number","number per km","per metre per connection","metres per connection"]
[null,null,"Circuit line length in km","0's","0's","0's","0's","0's","0's","Number of maintenance spans","0's","0's","number","number","per service per connection","number per connection"]
[null,null,"Circuit line length in km","MVA added","MVA added","MVA added","MVA added","km","km","Total length of maintenance spans","0's","$0s","number","number","number per connection","number per connection"]
[null,null,"Circuit line length in km","0's","0's","0's","0's","km","km","Length of vegetation corridors","$0s","0's","km"]
[null,null,"Number","total spend $0s","total spend $0s","total spend $0s","total spend $0s","0's","0's","Average number of trees per maintenance span"]
[null,null,"Number","net circuit km added","net circuit km added","net circuit km added","net circuit km added","years","years","Average frequency of cutting cycle"]
[null,null,"Number","total spend $0s","total spend $0s","total spend $0s","total spend $0s"]
[null,null,null,"net circuit km added","net circuit km added","net circuit km added","net circuit km added"]
[null,null,null,"total spend $0s","total spend $0s","total spend $0s","total spend $0s"]
[null,null,null,"0's",null,"$0s"]
[null,null,null,"0's"]
[null,null,null,"0's"]
[null,null,null,"$0s"]
[]
[]
[null,"CA & RESET RINS \nTNSP ONLY","dms_020701_01_UOM"]
[null,null,"km"]
[null,null,"0's"]
[null,null,"km"]
[null,null,"0's"]
[null,null,"km"]
[null,null,"metres"]
[null,null,"years"]
[]
[]
[null,"CA & RESET RINS \nDNSP & TNSP","dms_020603_01_UOM"]
[null,null,"0's"]
[null,null,"0's"]
[null,null,"0's"]
[null,null,"0's"]
[null,null,"(per cent)"]
[]
[]
[null,"EB & RESET RINS \nDNSP ONLY","dms_030601_01_UOM","dms_030601_02_UOM","dms_030701_01_UOM","dms_030702_01_UOM","dms_030703_01_UOM"]
[null,null,"minutes/customer","minutes/customer","Customer / km","%","km"]
[null,null,"minutes/customer","minutes/customer","MWh/customer","Number of spans"]
[null,null,"interruptions/customer","interruptions/customer","kVA / customer","Number of spans"]
[null,null,"interruptions/customer","interruptions/customer",null,"Number of spans"]
[null,null,null,null,null,"Number of spans"]
[null,null,null,null,null,"Years"]
[null,null,null,null,null,"Years"]
[null,null,null,null,null,"Trees"]
[null,null,null,null,null,"Trees"]
[null,null,null,null,null,"Defects"]
[null,null,null,null,null,"Defects"]
[null,null,null,null,null,"Spans"]
[null,null,null,null,null,"km"]
[null,null,null,null,null,"Spans"]
[]
[null,null,"WHEN INSERTING COVER SHEET INTO A TNSP FILE - APPLY THESE NAMED RANGES"]
[null,"EB & RESET RINS \nTNSP ONLY","dms_030601_01_UOM",null,"dms_030701_01_UOM","dms_030702_01_UOM"]
[null,null,"%",null,"Number of spans","km"]
[null,null,"number",null,"Years","%"]
[null,null,"number",null,"Trees","km"]
[null,null,"%",null,"Defects","number"]
[null,null,"number",null,"Number of spans"]
[null,null,"number",null,"km"]
[null,null,"%",null,"km"]
[null,null,"number",null,"Number of spans"]
[null,null,"number"]
[null,null,"%"]
[null,null,"number"]
[null,null,"%"]
[null,null,"number"]
[null,null,"%"]
[null,null,"number"]
[]
[null,"EB & RESET RINS \nDNSP & TNSP","dms_EB_RAB_PIT"]
[null,null,"Beginning of year"]
[null,null,"End of year"]
[null,null,"End of year"]
[null,null,"End of year"]
[null,null,"End of year"]
[null,null,"End of year"]
[]
[null,"ARR \nDNSP ONLY","dms_030605_UOM","dms_03060703_UOM","dms_E020202_UOM","Spare"]
[null,null,"number","number","Length of mains replaced"]
[null,null,"number","number","Number of services replaced"]
[null,null,"number","number"]
[null,null,"number","number"]
[null,null,"number","(per cent)"]
[null,null,"number"]
[null,null,"number"]
[null,null,"number"]
[null,null,"number"]
[null,null,"number"]
[null,null,"number"]
[null,null,"number"]
[null,null,"(per cent)"]
[null,null,"(per cent)",""]
[]
[null,"RFM","dms_Beg","dms_Mid","dms_End"]
[null,null,"Beginning of year","Mid year","End of Year"]
[]
[null,"PTRM","dms_PTRM_RAB_PIT","dms_PTRM_TAB_PIT","DMS_Xfactor"]
[null,null,"Beginning of year","Beginning of year","x factors"]
[null,null,"End of year","End of year"]
[null,null,"End of year","End of year"]
[null,null,"End of year","End of year"]
[null,null,"End of year"]
[]
[]
[null,"STPIS & MIC NAMED RANGES "]
[]
[null,"These \"row descriptions\" are the column headings in the various templates but become row descriptions in the ETL process"]
[]
[null,"Table 6.3 sustained interruptions - row descriptions","dms_060301_CustNo_Affected_Row","dms_060301_Avg_Duration_Sustained_Int_Row","dms_060301_Effect_unplanned_SAIDI_Row","dms_060301_Effect_unplanned_SAIFI_Row"]
[null,null,"Number of customers affected by the interruption","Average duration of sustained customer interruption","Effect on unplanned SAIDI","Effect on unplanned SAIFI"]
[]
[]
[null,"Table 6.1 telephone answering - row descriptions and start date","dms_060101_Rows","dms_060102_Rows","dms_060101_StartDateTxt"]
[null,null,"Total number of calls \n(after removing excluded events)","Number of calls answered within 30 seconds \n(after excluding excluded events) ",{"$f":"dms_060701_StartDateTxt","v":"1-Jul-2017"}]
[]
[]
[null,"Table 6.8.1 - row descriptions","dms_060801_01_Rows","dms_060801_02_Rows","dms_060801_03_Rows","dms_060801_04_Rows"]
[null,null,"Number of interruptions","Duration of interruptions","Total unplanned minutes off supply","Effect on unplanned MAIFI"]
[]
[]
[null,"Table 7.9.4 - market impact component - row descriptions","dms_070904_01_Rows","without exclusions","with exclusions"]
[]
[]
[null,"These headings (Lists) are determined from the INDEX/MATCH function on the NSP selected on the Business & other details sheet"]
[]
[null,"Table 6.7.1 - daily performance data - unplanned - MAIFI  -- row descriptions and header named range values","dms_060701_Feeder_Header_Lvl4",{"$f":"INDEX(dms_FeederName_1,MATCH(dms_TradingName,dms_TradingName_List))","v":"CBD"},{"$f":"INDEX(dms_FeederName_1,MATCH(dms_TradingName,dms_TradingName_List))","v":"CBD"},{"$f":"INDEX(dms_FeederName_2,MATCH(dms_TradingName,dms_TradingName_List))","v":"Urban"},{"$f":"INDEX(dms_FeederName_2,MATCH(dms_TradingName,dms_TradingName_List))","v":"Urban"},{"$f":"INDEX(dms_FeederName_3,MATCH(dms_TradingName,dms_TradingName_List))","v":"Short rural"},{"$f":"INDEX(dms_FeederName_3,MATCH(dms_TradingName,dms_TradingName_List))","v":"Short rural"},{"$f":"INDEX(dms_FeederName_4,MATCH(dms_TradingName,dms_TradingName_List))","v":"Long rural"},{"$f":"INDEX(dms_FeederName_4,MATCH(dms_TradingName,dms_TradingName_List))","v":"Long rural"},{"$f":"IF((INDEX(dms_FeederName_5,MATCH(dms_TradingName,dms_TradingName_List))=0),\"Network\",(INDEX(dms_FeederName_5,MATCH(dms_TradingName,dms_TradingName_List))))","v":"Network"},{"$f":"IF((INDEX(dms_FeederName_5,MATCH(dms_TradingName,dms_TradingName_List))=0),\"Network\",(INDEX(dms_FeederName_5,MATCH(dms_TradingName,dms_TradingName_List))))","v":"Network"},"Network","Network"]
[]
[null,null,"dms_060701_Rows","All events","After removing excluded events","All events","After removing excluded events","All events","After removing excluded events","All events","After removing excluded events","All events","After removing excluded events","All events","After removing excluded events"]
[null,null,null,"the number of column headings changes from 10 to 12 depending on the number of feeder categories for the NSP"]
[]
[null,null,"dms_0603_FeederList",{"$f":"INDEX(dms_FeederName_1,MATCH(dms_TradingName,dms_TradingName_List))","v":"CBD"},{"$f":"INDEX(dms_FeederName_2,MATCH(dms_TradingName,dms_TradingName_List))","v":"Urban"},{"$f":"INDEX(dms_FeederName_3,MATCH(dms_TradingName,dms_TradingName_List))","v":"Short rural"},{"$f":"INDEX(dms_FeederName_4,MATCH(dms_TradingName,dms_TradingName_List))","v":"Long rural"}]
[]
[]
[null,"Use these to add to specific worksheets in existing files","Use these to add to specific worksheets in existing files"]
[]
[]
[null,"ARRs 6.7 STPIS daily performance","dms_060101_Values","dms_060102_Values","dms_060701_Values"]
[null,null,"dms_LeapYear"]
[]
[]
[null,"ARR's  6.8 STPIS exclusions","dms_060801_Event_Date","dms_060801_OutageID","dms_060801_FeederID","dms_060801_FeederClass","dms_060801_CauseID","dms_060801_01_Values","dms_060801_02_Values","dms_060801_03_Values","dms_060801_Excl_Cat","dms_060801_04_Values"]
[null,null,"dms_060801_StartCell"]
[]
[]
[null,"CA 6.3 sustained interruptions","dms_060301_Event_Date","dms_060301_Event_Time","dms_060301_AssetID","dms_060301_FeederClass","dms_060301_Reason","dms_060301_DetailedReason","dms_060301_CustNo_Affected_Values","dms_060301_Avg_Duration_Sustained_Int_Values","dms_060301_Effect_unplanned_SAIDI_Values","dms_060301_Effect_unplanned_SAIFI_Values","dms_060301_MED"]
[]
[]
[]
[null,"PTRM input sheet","DMS_50_01_01a","DMS_50_01_01aa","DMS_50_01_01b","DMS_50_01_01bb","DMS_50_01_01c","DMS_50_01_01d","DMS_50_01_01dd"]

{"sheet":"AER lookups","index":7,"n_rows":101,"n_cols":36,"rows_kept":101,"cut":false,"hidden":true,"merged":[[12,59,12,80],[22,1,22,4],[4,24,4,34],[5,24,5,27],[5,29,5,33],[5,34,7,34],[10,59,10,80],[11,59,11,80]]}
[null,"AER LOOKUP TABLES"]
[]
[null,"Template number",5]
[]
[null,null,null,null,null,null,null,null,null,null,null,null,null,null,null,null,null,null,null,null,null,null,null,null,"FOR ELECTRICITY BUSINESSES ONLY"]
[null,null,null,null,null,null,null,null,null,null,null,null,null,null,null,null,null,null,null,null,null,null,null,null,"Feeder Types",null,null,null,"TasNetworks (D)","Feeder Names"]
[]
[null,null,null,null,null,null,null,null,null,null,null,null,null,null,null,null,null,null,null,null,null,null,null,null,"CBD","Urban","Short rural","long rural","EXTRA"]
[null,"dms_TradingName_List","dms_TradingNameFull_List","dms_ABN_List","dms_JurisdictionList","dms_Sector_List","dms_Segment_List","dms_FormControl_List","dms_RPT_List","dms_RPTMonth_List","dms_CRCPlength_List","dms_FRCPlength_List","dms_PRCPlength_List","dms_663_List","dms_Addr1_List","dms_Addr2_List","dms_Suburb_List","dms_State_List","dms_PostCode_List","dms_PAddr1_List","dms_PAddr2_List","dms_PSuburb_List","dms_PState_List","dms_PPostCode_List","dms_CBD_flag","dms_Urban_flag","dms_ShortRural_flag","dms_LongRural_flag","dms_FeederType_5_flag","dms_FeederName_1","dms_FeederName_2","dms_FeederName_3","dms_FeederName_4","dms_FeederName_5","dms_Public_Lighting_List","Name"]
[null,"AEMO","Australian Energy Market Operator Ltd",94072010327,"Vic","Electricity","Transmission","Revenue cap","Financial","March",5,5,5,"x","Level 22","530 Collins Street","MELBOURNE","Vic",3000,"GPO Box 2008",null,"MELBOURNE","Vic",3001,"NO","NO","NO","NO","NO","CBD","Urban","Short rural","Long rural",null,"NO",{"$f":"B10","v":"AEMO"}]
[null,"AusNet (T)","AusNet Transmission Group Pty Ltd",78079798173,"Vic","Electricity","Transmission","Revenue cap","Financial","March",5,5,5,2,"Level 32","2 Southbank Boulevard","SOUTHBANK","Vic",3006,"Locked Bag 14051",null,"MELBOURNE CITY MAIL CENTRE","Vic",8001,"NO","NO","NO","NO","NO","CBD","Urban","Short rural","Long rural",null,"NO","AusNet (T)"]
[null,"Australian Transmission Co.","Australian Transmission Co.",11222333444,"NSW","Electricity","Transmission","Revenue cap","Financial","June",5,5,5,5,"123 Straight Street",null,"SYDNEY","NSW",2000,"PO Box 123",null,"SYDNEY","NSW",2000,"NO","NO","NO","NO","NO","CBD","Urban","Short rural","Long rural",null,"NO","Australian Transmission Co."]
[null,"Directlink","Directlink",16779340889,"Qld","Electricity","Transmission","Revenue cap","Financial","June",5,5,5,5,"Level 25","580 George Street","SYDNEY","NSW",2000,"PO Box R41",null,"ROYAL EXCHANGE","NSW",1225,"NO","NO","NO","NO","NO","CBD","Urban","Short rural","Long rural",null,"NO","Directlink"]
[null,"ElectraNet","ElectraNet",41094482416,"SA","Electricity","Transmission","Revenue cap","Financial","June",5,5,5,5,"52-55 East Terrace","Rymill Park","ADELAIDE","SA",5000,"PO Box 7096","Hutt Street Post Office","ADELAIDE","SA",5000,"NO","NO","NO","NO","NO","CBD","Urban","Short rural","Long rural",null,"NO","ElectraNet"]
[null,"Murraylink","Murraylink",79181207909,"SA","Electricity","Transmission","Revenue cap","Financial","June",5,5,5,5,"Level 19","580 George Street","SYDNEY","NSW",2000,"PO Box R41",null,"ROYAL EXCHANGE","NSW",1225,"NO","NO","NO","NO","NO","CBD","Urban","Short rural","Long rural",null,"NO","Murraylink"]
[null,"Powerlink","Queensland Electricity Transmission Corporation Limited trading as Powerlink Queensland",82078849233,"Qld","Electricity","Transmission","Revenue cap","Financial","June",5,5,5,5,"33 Harold St",null,"VIRGINIA","Qld",4014,"PO Box 1193",null,"VIRGINIA","QLD",4014,"NO","NO","NO","NO","NO","CBD","Urban","Short rural","Long rural",null,"NO","Powerlink"]
[null,"TasNetworks (T)","TasNetworks (T)",24167357299,"Tas","Electricity","Transmission","Revenue cap","Financial","June",5,5,5,5,"1-7 Maria Street",null,"LENAH VALLEY","Tas",7008,"PO Box 606",null,"MOONAH","Tas",7009,"NO","NO","NO","NO","NO","CBD","Urban","Short rural","Long rural",null,"NO","TasNetworks (T)"]
[null,"TransGrid","NSW Electricity Networks Operations Pty Ltd trading as TransGrid","70 250 995 390","NSW","Electricity","Transmission","Revenue cap","Financial","June",5,5,4,5,"180 Thomas Street",null,"SYDNEY","NSW",2000,"PO Box A1000",null,"SYDNEY SOUTH","NSW",1235,"NO","NO","NO","NO","NO","CBD","Urban","Short rural","Long rural",null,"NO","TransGrid"]
[]
[]
[]
[]
[null,"The Reg Year Ending (dms_RYE) must be set to the last year of the regulatory period. For forecast data is is usually (FRCP_y5) for actual it is a single year (CRY). For historical actual data the RYE will need to be set manually in the business details sheet by setting the dms_Multiyear_flag to 1 and putting the correct value in 'dms_Specified_FinalYear. See cells C67:C68"]
[null,"dms_Model_List ","dms_Model_Name_Format1","dms_Worksheet_List","dms_Model_Span_List"]
[null,"ARR","Annual Reporting",{"$f":"IF(dms_MultiYear_ResponseFlag=\"yes\",\"NEW HISTORICAL ANNUAL REPORTING\",\"ANNUAL REPORTING\")","v":"NEW HISTORICAL ANNUAL REPORTING"},1]
[null,"CA","Category Analysis",{"$f":"IF(dms_MultiYear_ResponseFlag=\"yes\",\"NEW HISTORICAL CATEGORY ANALYSIS\",\"CATEGORY ANALYSIS\")","v":"NEW HISTORICAL CATEGORY ANALYSIS"},1]
[null,"CESS","Capitlal Expenditure","CAPITLAL EXPENDITURE SHARING SCHEMING",5]
[null,"CPI","CPI","CPI",5]
[null,"EB","Economic Benchmarking",{"$f":"IF(dms_MultiYear_ResponseFlag=\"yes\",\"NEW HISTORICAL ECONOMIC BENCHMARKING\",\"ECONOMIC BENCHMARKING\")","v":"NEW HISTORICAL ECONOMIC BENCHMARKING"},1]
[null,"EBSS","Efficiency Benefit Sharing Scheme","EFFICIENCY BENEFIT SHARING SCHEME",5]
[null,"Pricing","Pricing Proposal","PRICING PROPOSAL",5]
[null,"Profitability","Profitability","PROFITABILITY",5]
[null,"PTRM","Post Tax Revenue Model","POST TAX REVENUE MODEL",5]
[null,"Reset","Regulatory Reporting (Reset)","REGULATORY REPORTING STATEMENT",5]
[null,"RFM","Roll Forward Model","ROLL FORWARD MODEL",5]
[null,"WACC","Weighted Average Cost of Capital","WEIGHTED AVERAGE COST OF CAPITAL",1]
[]
[]
[]
[null,"Financial","Calendar",null,"PREVIOUS",null,"CURRENT",null,"FORTHCOMING"]
[null,"1987-88","1988","PRCP_y1",{"$f":"INDEX(INDIRECT(dms_RPT),dms_PRCP_start_row)","v":"2017-18"},"CRCP_y1",{"$f":"INDEX(INDIRECT(dms_RPT),dms_CRCP_start_row)","v":"2022-23"},{"$f":"FRCP_y1","v":"2027-28"},{"$f":"INDEX(INDIRECT(dms_RPT),dms_FRCP_start_row)","v":"2027-28"}]
[null,"1988-89","1989","PRCP_y2",{"$f":"INDEX(INDIRECT(dms_RPT),dms_PRCP_start_row+1)","v":"2018-19"},"CRCP_y2",{"$f":"INDEX(INDIRECT(dms_RPT),dms_CRCP_start_row+1)","v":"2023-24"},"FRCP_y2",{"$f":"INDEX(INDIRECT(dms_RPT),dms_FRCP_start_row+1)","v":"2028-29"}]
[null,"1989-90","1990","PRCP_y3",{"$f":"INDEX(INDIRECT(dms_RPT),dms_PRCP_start_row+2)","v":"2019-20"},"CRCP_y3",{"$f":"INDEX(INDIRECT(dms_RPT),dms_CRCP_start_row+2)","v":"2024-25"},"FRCP_y3",{"$f":"INDEX(INDIRECT(dms_RPT),dms_FRCP_start_row+2)","v":"2029-30"}]
[null,"1990-91","1991","PRCP_y4",{"$f":"INDEX(INDIRECT(dms_RPT),dms_PRCP_start_row+3)","v":"2020-21"},"CRCP_y4",{"$f":"INDEX(INDIRECT(dms_RPT),dms_CRCP_start_row+3)","v":"2025-26"},"FRCP_y4",{"$f":"INDEX(INDIRECT(dms_RPT),dms_FRCP_start_row+3)","v":"2030-31"}]
[null,"1991-92","1992","PRCP_y5",{"$f":"INDEX(INDIRECT(dms_RPT),dms_PRCP_start_row+4)","v":"2021-22"},"CRCP_y5",{"$f":"INDEX(INDIRECT(dms_RPT),dms_CRCP_start_row+4)","v":"2026-27"},"FRCP_y5",{"$f":"INDEX(INDIRECT(dms_RPT),dms_FRCP_start_row+4)","v":"2031-32"}]
[null,"1992-93","1993","PRCP_y6",{"$f":"INDEX(INDIRECT(dms_RPT),dms_PRCP_start_row+5)","v":"2022-23"},"CRCP_y6",{"$f":"INDEX(INDIRECT(dms_RPT),dms_CRCP_start_row+5)","v":"2027-28"},"FRCP_y6",{"$f":"INDEX(INDIRECT(dms_RPT),dms_FRCP_start_row+5)","v":"2032-33"}]
[null,"1993-94","1994","PRCP_y7",{"$f":"INDEX(INDIRECT(dms_RPT),dms_PRCP_start_row+6)","v":"2023-24"},"CRCP_y7",{"$f":"INDEX(INDIRECT(dms_RPT),dms_CRCP_start_row+6)","v":"2028-29"},"FRCP_y7",{"$f":"INDEX(INDIRECT(dms_RPT),dms_FRCP_start_row+6)","v":"2033-34"}]
[null,"1994-95","1995","PRCP_y8",{"$f":"INDEX(INDIRECT(dms_RPT),dms_PRCP_start_row+7)","v":"2024-25"},"CRCP_y8",{"$f":"INDEX(INDIRECT(dms_RPT),dms_CRCP_start_row+7)","v":"2029-30"},"FRCP_y8",{"$f":"INDEX(INDIRECT(dms_RPT),dms_FRCP_start_row+7)","v":"2034-35"}]
[null,"1995-96","1996","PRCP_y9",{"$f":"INDEX(INDIRECT(dms_RPT),dms_PRCP_start_row+8)","v":"2025-26"},"CRCP_y9",{"$f":"INDEX(INDIRECT(dms_RPT),dms_CRCP_start_row+8)","v":"2030-31"},"FRCP_y9",{"$f":"INDEX(INDIRECT(dms_RPT),dms_FRCP_start_row+8)","v":"2035-36"}]
[null,"1996-97","1997","PRCP_y10",{"$f":"INDEX(INDIRECT(dms_RPT),dms_PRCP_start_row+9)","v":"2026-27"},"CRCP_y10",{"$f":"INDEX(INDIRECT(dms_RPT),dms_CRCP_start_row+9)","v":"2031-32"},"FRCP_y10",{"$f":"INDEX(INDIRECT(dms_RPT),dms_FRCP_start_row+9)","v":"2036-37"}]
[null,"1997-98","1998","PRCP_y11",{"$f":"INDEX(INDIRECT(dms_RPT),dms_PRCP_start_row+10)","v":"2027-28"},"CRCP_y11",{"$f":"INDEX(INDIRECT(dms_RPT),dms_CRCP_start_row+10)","v":"2032-33"},"FRCP_y11",{"$f":"INDEX(INDIRECT(dms_RPT),dms_FRCP_start_row+10)","v":"2037-38"}]
[null,"1998-99","1999","PRCP_y12",{"$f":"INDEX(INDIRECT(dms_RPT),dms_PRCP_start_row+11)","v":"2028-29"},"CRCP_y12",{"$f":"INDEX(INDIRECT(dms_RPT),dms_CRCP_start_row+11)","v":"2033-34"},"FRCP_y12",{"$f":"INDEX(INDIRECT(dms_RPT),dms_FRCP_start_row+11)","v":"2038-39"}]
[null,"1999-00","2000","PRCP_y13",{"$f":"INDEX(INDIRECT(dms_RPT),dms_PRCP_start_row+12)","v":"2029-30"},"CRCP_y13",{"$f":"INDEX(INDIRECT(dms_RPT),dms_CRCP_start_row+12)","v":"2034-35"},"FRCP_y13",{"$f":"INDEX(INDIRECT(dms_RPT),dms_FRCP_start_row+12)","v":"2039-40"}]
[null,"2000-01","2001","PRCP_y14",{"$f":"INDEX(INDIRECT(dms_RPT),dms_PRCP_start_row+13)","v":"2030-31"},"CRCP_y14",{"$f":"INDEX(INDIRECT(dms_RPT),dms_CRCP_start_row+13)","v":"2035-36"},"FRCP_y14",{"$f":"INDEX(INDIRECT(dms_RPT),dms_FRCP_start_row+13)","v":"2040-41"}]
[null,"2001-02","2002","PRCP_y15",{"$f":"INDEX(INDIRECT(dms_RPT),dms_PRCP_start_row+14)","v":"2031-32"},"CRCP_y15",{"$f":"INDEX(INDIRECT(dms_RPT),dms_CRCP_start_row+14)","v":"2036-37"},"FRCP_y15",{"$f":"INDEX(INDIRECT(dms_RPT),dms_FRCP_start_row+14)","v":"2041-42"}]
[null,"2002-03","2003","PRCP_y16",{"$f":"INDEX(INDIRECT(dms_RPT),dms_PRCP_start_row+15)","v":"2032-33"},"CRCP_y16",{"$f":"INDEX(INDIRECT(dms_RPT),dms_CRCP_start_row+15)","v":"2037-38"},"FRCP_y16",{"$f":"INDEX(INDIRECT(dms_RPT),dms_FRCP_start_row+15)","v":"2042-43"}]
[null,"2003-04","2004"]
[null,"2004-05","2005"]
[null,"2005-06","2006",null,"CRY - FRY"]
[null,"2006-07","2007","dms_y1",{"$f":"IFERROR(INDEX(INDIRECT(dms_RPT),dms_CRY_start_row),0)","v":"2017-18"}]
[null,"2007-08","2008","dms_y2",{"$f":"IFERROR(INDEX(INDIRECT(dms_RPT),dms_CRY_start_row+1),0)","v":"2018-19"}]
[null,"2008-09","2009","dms_y3",{"$f":"IFERROR(INDEX(INDIRECT(dms_RPT),dms_CRY_start_row+2),0)","v":"2019-20"}]
[null,"2009-10",2010,"dms_y4",{"$f":"IFERROR(INDEX(INDIRECT(dms_RPT),dms_CRY_start_row+3),0)","v":"2020-21"}]
[null,"2010-11",2011,"dms_y5",{"$f":"IFERROR(INDEX(INDIRECT(dms_RPT),dms_CRY_start_row+4),0)","v":"2021-22"}]
[null,"2011-12",2012,"dms_y6",{"$f":"IFERROR(INDEX(INDIRECT(dms_RPT),dms_CRY_start_row+5),0)","v":"2022-23"}]
[null,"2012-13",2013,"dms_y7",{"$f":"IFERROR(INDEX(INDIRECT(dms_RPT),dms_CRY_start_row+6),0)","v":"2023-24"}]
[null,"2013-14",2014,"dms_y8",{"$f":"IFERROR(INDEX(INDIRECT(dms_RPT),dms_CRY_start_row+7),0)","v":"2024-25"}]
[null,"2014-15",2015,"dms_y9",{"$f":"IFERROR(INDEX(INDIRECT(dms_RPT),dms_CRY_start_row+8),0)","v":"2025-26"}]
[null,"2015-16",2016,"dms_y10",{"$f":"IFERROR(INDEX(INDIRECT(dms_RPT),dms_CRY_start_row+9),0)","v":"2026-27"}]
[null,"2016-17",2017,"dms_y11",{"$f":"IFERROR(INDEX(INDIRECT(dms_RPT),dms_CRY_start_row+10),0)","v":"2027-28"}]
[null,"2017-18",2018,"dms_y12",{"$f":"IFERROR(INDEX(INDIRECT(dms_RPT),dms_CRY_start_row+11),0)","v":"2028-29"}]
[null,"2018-19",2019,"dms_y13",{"$f":"IFERROR(INDEX(INDIRECT(dms_RPT),dms_CRY_start_row+12),0)","v":"2029-30"}]
[null,"2019-20",2020,"dms_y14",{"$f":"IFERROR(INDEX(INDIRECT(dms_RPT),dms_CRY_start_row+13),0)","v":"2030-31"}]
[null,"2020-21",2021,"dms_y15",{"$f":"IFERROR(INDEX(INDIRECT(dms_RPT),dms_CRY_start_row+14),0)","v":"2031-32"}]
[null,"2021-22",2022,"dms_y16",{"$f":"IFERROR(INDEX(INDIRECT(dms_RPT),dms_CRY_start_row+15),0)","v":"2032-33"}]
[null,"2022-23",2023]
[null,"2023-24",2024]
[null,"2024-25",2025]
[null,"2025-26",2026]
[null,"2026-27",2027]
[null,"2027-28",2028]
[null,"2028-29",2029]
[null,"2029-30",2030]
[null,"2030-31",2031]
[null,"2031-32",2032]
[null,"2032-33",2033]
[null,"2033-34",2034]
[null,"2034-35",2035]
[null,"2035-36",2036]
[null,"2036-37",2037]
[null,"2037-38",2038]
[null,"2038-39",2039]
[null,"2039-40",2040]
[null,"2040-41",2041]
[null,"2041-42",2042]
[null,"2042-43",2043]
[null,"2043-44",2044]
[null,"2044-45",2045]
[null,"2045-46",2046]
[null,"2046-47",2047]
[null,"2047-28",2048]

{"sheet":"AER ETL","index":8,"n_rows":146,"n_cols":10,"rows_kept":146,"cut":false,"hidden":true,"merged":[[35,0,60,0],[35,37,35,58],[35,68,35,89],[33,37,33,58],[72,1,74,1],[33,68,33,89],[34,37,34,58],[34,68,34,89],[12,0,16,0],[13,4,13,8],[15,2,15,4],[19,0,26,0],[27,0,32,0]]}
[null,"AER ETL INFORMATION"]
[]
[null,"USES NAMED RANGES FLAG","yes","dms_Defined_Names_Used"]
[]
[null,"IF THIS IS AN ABC RIN - make sure the the named range CRY is applied and the named range dms_dollar_nom_UOM is applied"]
[null,"IF THIS IS A RESET RIN - make sure the named ranges CRY and dms_dollar_nom_UOM are NOT present in the workbook"]
[null,"FOR ABC RINS THAT SPAN MULTIPLE YEARS - make sure MultiYear Flag is set and final year entered as required"]
[]
[null,"Full trading name",{"$f":"INDEX(dms_TradingNameFull_List,MATCH(dms_TradingName,dms_TradingName_List))","v":"Queensland Electricity Transmission Corporation Limited trading as Powerlink Queensland"},null,"dms_TradingNameFull"]
[null,"Trading name",{"$f":"dms_TradingName","v":"Powerlink"}]
[null,"Unique ID","ETTQLD100"]
["Selected here","Model / RIN","ARR","dms_Model"]
["Read from Business & other details","Source","Regulatory proposal","dms_Source",{"$f":"IF(dms_Model=\"Reset\", \"Make sure you have set Reg Proposal as source\",\"\")","v":""}]
[null,"Data quality","Consolidated","For DB purposes this is always Consoldiated"]
[null,"Data status","Public","For DB purposes this is always Public"]
[null,"Amendment reason",{"$f":"dms_Amendment_Text","v":"."},null,null,"dms_AmendmentReason"]
[null,"Submission date",{"$f":"dms_Typed_Submission_Date","v":"dd/mm/yy"},"dms_SubmissionDate"]
[]
["Redundant","EBSS - First application of scheme in forthcoming period?","No"]
["Pre-populated from lookup table","Data ingestion data quality","Consolidated","dms_DataQuality","Always Consolidated"]
[null,"Sector",{"$f":"INDEX(dms_Sector_List,MATCH(dms_TradingName,dms_TradingName_List))","v":"Electricity"},"dms_Sector","=INDEX(dms_Sector_List,MATCH(dms_TradingName,dms_TradingName_List))"]
[null,"Segment",{"$f":"INDEX(dms_Segment_List,MATCH(dms_TradingName,dms_TradingName_List))","v":"Transmission"},"dms_Segment","=INDEX(dms_Segment_List,MATCH(dms_TradingName,dms_TradingName_List))"]
[null,"Regulatory Year Ending",{"$f":"IF(dms_MultiYear_Flag=1,LEFT(dms_Specified_FinalYear,2)&RIGHT(dms_Specified_FinalYear,2),dms_RYE_result)","v":"2025"},"dms_RYE","=IF(dms_MultiYear_Flag=1,LEFT(dms_Specified_FinalYear,2)&RIGHT(dms_Specified_FinalYear,2),dms_RYE_result)"]
[null,"Reporting Period Type",{"$f":"INDEX(dms_RPT_List,MATCH(dms_TradingName,dms_TradingName_List))","v":"Financial"},"dms_RPT","=INDEX(dms_RPT_List,MATCH(dms_TradingName,dms_TradingName_List))"]
[null,"EB/CA Unit of Measure for Monetary Values","$0s","dms_dollar_nom_UOM",{"$f":"IF(dms_SingleYearModel=\"yes\",\"This is set to an historical template (EB, CA or ARR), apply UOM Named Range to cell !\",\"This is not an historical template, make sure UOM Named Range is not applied\")","v":"This is set to an historical template (EB, CA or ARR), apply UOM Named Range to cell !"},null,null,null,null,{"$f":"IFERROR(dms_dollar_nom_UOM, \"NR not applied\")","v":"NR not applied"}]
[null,"Security Classification","Public","dms_Classification","Always Public"]
[null,"Jurisdiction",{"$f":"INDEX(dms_JurisdictionList,MATCH(dms_TradingName,dms_TradingName_List))","v":"Qld"},"dms_Jurisdiction","=INDEX(dms_JurisdictionList,MATCH(dms_TradingName,dms_TradingName_List))"]
["Relevant for PTRM, RFMs and Reset RINS","$ REAL REFERENCES"]
[null,"Does the named range CRY exist in this file? ",{"$f":"IFERROR(CRY,\"NO\")","v":"2017-18"},"CRY","CRY is found on the Business sheet at row 58."]
[null,"CRY-1  (last full calendar year before CRY)",{"$f":"IFERROR(IF(dms_RPT=\"calendar\",CRY-1,LEFT(CRY,4)),\"CRY not present\")","v":"2017"},"dms_Cal_Year_B4_CRY","'=IF(dms_RPT=\"financial\",VALUE(LEFT(dms_SingleYear_FinalYear_Result,4)),VALUE(LEFT(dms_SingleYear_FinalYear_Result,4)-1))"]
[null,"Dollar $ real month",{"$f":"INDEX(dms_RPTMonth_List,MATCH(dms_TradingName,dms_TradingName_List))","v":"June"},"dms_RPTMonth","=INDEX(dms_RPTMonth_List,MATCH(dms_TradingName,dms_TradingName_List))"]
[null,"Dollar $ real  (the last month before the FRCP_y1)",{"$f":"IF(dms_Model=\"RFM\",dms_DollarReal_Prev, IF(dms_SingleYearModel=\"yes\",CONCATENATE(dms_RPTMonth)&\" \"&VALUE((LEFT(dms_CRY_start_year,2)&RIGHT(dms_CRY_start_year,2))),CONCATENATE(dms_RPTMonth)&\" \"&dms_DollarReal_year))","v":"June 2018"},"dms_DollarReal","=IF(dms_Model=\"RFM\",dms_DollarReal_Prev, IF(dms_SingleYearModel=\"yes\",CONCATENATE(dms_RPTMonth)&\" \"&VALUE((LEFT(dms_CRY_start_year,2)&RIGHT(dms_CRY_start_year,2))),CONCATENATE(dms_RPTMonth)&\" \"&dms_DollarReal_year))"]
[null,"Dollar $ real previous year (PRCP_y5)",{"$f":"CONCATENATE(dms_RPTMonth)&\" \"&dms_Previous_DollarReal_year","v":"June 2022"},"dms_DollarReal_Prev","=IF(SUM(dms_SingleYear_Model)>0,CONCATENATE(dms_RPTMonth)&\" \"&VALUE(((LEFT(CRY,2))&RIGHT(CRY,2))-1),CONCATENATE(dms_RPTMonth)&\" \"&VALUE(((LEFT(dms_CRCP_FirstYear_Result,2)&RIGHT(dms_CRCP_FirstYear_Result,2))))-1)"]
[null,"PTRM/ RFMs"]
[null,"Form of control",{"$f":"INDEX(dms_FormControl_List,MATCH(dms_TradingName,dms_TradingName_List))","v":"Revenue cap"},"dms_FormControl","=INDEX(dms_FormControl_List,MATCH(dms_TradingName,dms_TradingName_List))"]
["All potential values for Regulatory Years or RYEs as calculated","This block works out the various RYE's for ALL RIN types and MODELS"]
[null,"dms_start_year",{"$f":"FRCP_y1","v":"2027-28"},"=FRCP_y1","FRCP_y1 from cover sheet"]
[null,"dms_CRY_start_year",{"$f":"IFERROR(CRY,CRCP_y4)","v":"2017-18"},"=IFERROR(CRY,CRCP_y4)"]
[null,"dms_CRY_start_row",{"$f":"IFERROR(MATCH(dms_CRY_start_year,INDIRECT(dms_RPT),0),0)","v":31},"=IFERROR(MATCH(dms_CRY_start_year,INDIRECT(dms_RPT),0),0)"]
[null,"dms_FRCP_start_row",{"$f":"MATCH(dms_start_year,INDIRECT(dms_RPT),0)","v":41},"=MATCH(dms_start_year,INDIRECT(dms_RPT),0)","Uses FRCP_y1 as a start reference"]
[null,"dms_CRCP_start_row",{"$f":"dms_FRCP_start_row-dms_CRCPlength_Num","v":36},"=dms_FRCP_start_row-dms_CRCPlength_Num","Uses the value in dms_CRCPlength_Num"]
[null,"dms_PRCP_start_row",{"$f":"dms_FRCP_start_row-dms_CRCPlength_Num-dms_PRCPlength_Num","v":31},"=dms_FRCP_start_row-dms_CRCPlength_Num-dms_PRCPlength_Num","Uses the value in dms_CRCPlength_Num and dms_PRCPlength_Num"]
[null,"dms_RYE_start_row",{"$f":"dms_FRCP_start_row+(dms_FRCPlength_Num-1)","v":45},"=dms_FRCP_start_row+(dms_FRCPlength_Num-1)","Uses the value in dms_FRCPlength_Num-1"]
[null,"FRCP_start_year",{"$f":"INDEX(INDIRECT(dms_RPT),dms_FRCP_start_row)","v":"2027-28"},"=INDEX(INDIRECT(dms_RPT),dms_FRCP_start_row)","Converts the FRCP start row to display the year"]
[null,"CRCP_start_year",{"$f":"INDEX(INDIRECT(dms_RPT),dms_CRCP_start_row)","v":"2022-23"},"=INDEX(INDIRECT(dms_RPT),dms_CRCP_start_row)","Converts the CRCP start row to display the year"]
[null,"PRCP_start_year",{"$f":"INDEX(INDIRECT(dms_RPT),dms_PRCP_start_row)","v":"2017-18"},"=INDEX(INDIRECT(dms_RPT),dms_PRCP_start_row)","Converts the PRCP start row to display the year"]
[null,"FRCP_final_year",{"$f":"INDEX(INDIRECT(dms_RPT),dms_FRCP_start_row+dms_FRCPlength_Num-1)","v":"2031-32"},"=INDEX(INDIRECT(dms_RPT),dms_FRCP_start_row+dms_FRCPlength_Num-1)","Finds the FRCP final year"]
[null,"CRCP_final_year",{"$f":"INDEX(INDIRECT(dms_RPT),dms_CRCP_start_row+dms_CRCPlength_Num-1)","v":"2026-27"},"=INDEX(INDIRECT(dms_RPT),dms_CRCP_start_row+dms_CRCPlength_Num-1)","Finds the CRCP final year"]
[null,"PRCP_final_year",{"$f":"INDEX(INDIRECT(dms_RPT),dms_PRCP_start_row+dms_FRCPlength_Num-1)","v":"2021-22"},"=INDEX(INDIRECT(dms_RPT),dms_PRCP_start_row+dms_FRCPlength_Num-1)","Finds the PRCP final year"]
[null,"dms_Reset_final_year",{"$f":"INDEX(INDIRECT(dms_RPT),dms_RYE_start_row)","v":"2031-32"},"=INDEX(INDIRECT(dms_RPT),dms_RYE_start_row)","For Resets and PTRM/RFMs (same as FRCP_final_year)"]
[null,"dms_SpecifiedYear_final_year",{"$f":"FRY","v":"2024-25"},"=FRY","FRY from cover sheet"]
[null,"dms_DollarReal_year",{"$f":"LEFT(CRCP_final_year,2)&RIGHT(CRCP_final_year,2)","v":"2027"},"=LEFT(CRCP_final_year,2)&RIGHT(CRCP_final_year,2)","Uses the value in CRCP_final_year"]
[null,"dms_Previous_DollarReal_year",{"$f":"LEFT(PRCP_final_year,2)&RIGHT(PRCP_final_year,2)","v":"2022"},"=LEFT(PRCP_final_year,2)&RIGHT(PRCP_final_year,2)","Uses the value in PRCP_final_year"]
[null,"dms_CRY_RYE",{"$f":"IFERROR(LEFT(CRY,2)&RIGHT(CRY,2),0)","v":"2018"},"=IFERROR(LEFT(CRY,2)&RIGHT(CRY,2),0)","For ABC single year RINS"]
[null,"dms_Reset_RYE",{"$f":"IF(dms_Model_Span>1,IF(dms_Model=\"RFM\",(LEFT(dms_DollarReal_year,2)&RIGHT(dms_DollarReal_year,2)),(LEFT(dms_Reset_final_year,2)&RIGHT(dms_Reset_final_year,2))),0)","v":0},"=IF(dms_Model_Span>1,IF(dms_Model=\"RFM\",(LEFT(dms_DollarReal_year,2)&RIGHT(dms_DollarReal_year,2)),(LEFT(dms_Reset_final_year,2)&RIGHT(dms_Reset_final_year,2))),0)","If model span > 1 then uses dms_Reset_RYE otherwise it's a multi year ABC and uses dms_Specified_RYE"]
[null,"dms_Specified_RYE",{"$f":"IF(dms_MultiYear_ResponseFlag=\"Yes\",(LEFT(dms_Specified_FinalYear,2)&RIGHT(dms_Specified_FinalYear,2)),0)","v":"2025"},"=IF(dms_MultiYear_ResponseFlag=\"Yes\",(LEFT(dms_Specified_FinalYear,2)&RIGHT(dms_Specified_FinalYear,2)),0)","If multi year ABC - uses dms_Specified_FinalYear"]
[null,"dms_Model_Span",{"$f":"INDEX(dms_Model_Span_List,MATCH(dms_Model,dms_Model_List))","v":1},"=INDEX(dms_Model_Span_List,MATCH(dms_Model,dms_Model_List))","A result of 5 is used to signify that it is more than 1 year span"]
[null,"dms_RYE_result",{"$f":"IF(dms_MultiYear_ResponseFlag=\"yes\",dms_Specified_RYE,(IF(dms_Model_Span>1,dms_Reset_RYE,dms_CRY_RYE)))","v":"2025"},"=IF(dms_MultiYear_ResponseFlag=\"yes\",dms_Specified_RYE,(IF(dms_Model_Span>1,dms_Reset_RYE,dms_CRY_RYE)))","Nested IF - feeds into dms_RYE"]
[null,"dms_Reset_Span",{"$f":"IF(dms_Reset_RYE>0,CONCATENATE(FRCP_y1,\" to \",FRCP_final_year),0)","v":0},"=IF(dms_Reset_RYE>0,CONCATENATE(FRCP_y1,\" to \",FRCP_final_year),0)","Reset span of years as text"]
[null,"dms_SpecifiedYear_Span",{"$f":"IF(dms_Specified_RYE>0,CONCATENATE(CRY,\" to \",dms_Specified_FinalYear),0)","v":"2017-18 to 2024-25"},"=IF(dms_Specified_RYE>0,CONCATENATE(CRY,\" to \",dms_Specified_FinalYear),0)","Multi year ABC span of years as text"]
[null,"dms_Header_Span",{"$f":"IF(dms_MultiYear_Flag=1,dms_SpecifiedYear_Span,IF(dms_Model_Span>1,dms_y1&\" to \"&FRCP_final_year,CRY))","v":"2017-18 to 2024-25"},"=IF(dms_MultiYear_Flag=1,dms_SpecifiedYear_Span,IF(dms_Model_Span>1,dms_Reset_Span,CRY))","NESTED IF - for Sheet Headers"]
[null,"ABC RINS THAT SPAN MULTIPLE YEARS"]
[null,"This is a multi year ABC RIN?","Yes"]
[null,null,{"$f":"IF(dms_MultiYear_ResponseFlag=\"No\",0,1)","v":1},"dms_MultiYear_Flag","This is set from the answer provided above"]
[null,null,{"$f":"IF(dms_MultiYear_Flag=1,FRY,\"not a Multiple year submission\")","v":"2024-25"},"dms_Specified_FinalYear","The result here is returned to dms_CRCP_FinalYear_Result if response to Q in C73 is \"yes\" and dms_MultiYear_Flag is set to 1"]
[null," Start year for 5.2 in Multi year ABC RINS",{"$f":"IFERROR(IF(dms_MultiYear_Flag=1,FRY,CRY),\"not an ABC\")","v":"2024-25"},"dms_0502_Inst_Year","=IF(dms_MultiYear_Flag=1,FRY,CRY)",null,"For single year RINS this is CRY - multi year RINS need to start a the end of the span of years (ie. FRY)"]
[null,"WHAT IS THE RYE?"]
[null,"Reg Period Lengths"]
[null,"PRCP length in years",{"$f":"INDEX(dms_PRCPlength_List,MATCH(dms_TradingName,dms_TradingName_List))","v":5},"dms_PRCPlength_Num","=INDEX(dms_PRCPlength_List,MATCH(dms_TradingName,dms_TradingName_List))"]
[null,"CRCP length in years",{"$f":"INDEX(dms_CRCPlength_List,MATCH(dms_TradingName,dms_TradingName_List))","v":5},"dms_CRCPlength_Num","=INDEX(dms_CRCPlength_List,MATCH(dms_TradingName,dms_TradingName_List))"]
[null,"FRCP length in years",{"$f":"INDEX(dms_FRCPlength_List,MATCH(dms_TradingName,dms_TradingName_List))","v":5},"dms_FRCPlength_Num","=INDEX(dms_FRCPlength_List,MATCH(dms_TradingName,dms_TradingName_List))"]
[null,"Single year RIN?"]
[null,"Single Year ABC RIN ?",{"$f":"IF(dms_Model=\"EB\",1,0)","v":0},"dms_EB"]
[null,null,{"$f":"IF(dms_Model=\"CA\",1,0)","v":0},"dms_CA","=dms_SingleYear_Model"]
[null,null,{"$f":"IF(dms_Model=\"ARR\",1,0)","v":1},"dms_ARR"]
[null,"Is this a single Year ABC RIN?",{"$f":"IF(SUM(dms_SingleYear_Model)=1,\"yes\",\"no\")","v":"yes"},"dms_SingleYearModel","=IF(SUM(dms_SingleYear_Model)=1,\"yes\",\"no\")"]
[null,"Single Year Final Year Result",{"$f":"IF(AND(dms_SingleYearModel=\"yes\",dms_MultiYear_Flag=0),CRY,0)","v":0},"dms_SingleYear_FinalYear_Result","=IFERROR(IF(SUM(dms_SingleYear_Model)<>0,(INDIRECT(dms_SingleYear_FinalYear_Ref)),\"not a single year RIN\"),\"CRY not present\")"]
[null,"Multi year RIN?"]
[]
[null,"Multi Year Reset/Model?",{"$f":"IF(dms_Model_Span>1,\"yes\",\"no\")","v":"no"}]
[null,"Final year result for Reset/Model",{"$f":"IF(dms_Model_Span>1,dms_Reset_final_year,0)","v":0},"dms_MultiYear_FinalYear_Result","dms_CRCP_FinalYear_Result"]
[]
[null,"Multi Year ABC RIN?",{"$f":"IF(dms_MultiYear_Flag=1,\"yes\",\"no\")","v":"yes"},"dms_MultiYear_ABC_RIN"]
[null,"Final year result for ABC multi year",{"$f":"IF(dms_MultiYear_Flag=1,C51,0)","v":"2024-25"}]
[]
[null,"EB RINS"]
[null,"Calendar Year for table 3.6 data",{"$f":"IFERROR(IF(dms_Segment=\"Transmission\",dms_Cal_Year_B4_CRY,CRY),\"CRY not present\")","v":"2017"},"dms_0306_Year","=IF(dms_Segment=\"Transmission\",dms_Cal_Year_B4_CRY,CRY)"]
[null,"CA RINS"]
[null,"Find how many rows in tables 6.3 sustained interruptions?",null,null,"dms_060301_MaxRows only returns a valid value when cover sheet is attached to a CA file"]
[null,null,{"$f":"IF(dms_Model<>\"CA\",\"not a CA\",\"Is a CA\")","v":"not a CA"},null,"=IF(dms_Model<>\"CA\",\"not a CA\",\"Is a CA\")"]
[null,"dms_060301_Avg_Duration_Sustained_Int_Values present?",{"$f":"IFERROR(IF(INDEX(dms_060301_Avg_Duration_Sustained_Int_Values,1,1)<>\"\",\"yes\",\"no\"),\"no\")","v":"no"},"dms_060301_checkvalue","=IFERROR(IF(INDEX(dms_060301_Avg_Duration_Sustained_Int_Values,1,1)<>\"\",\"yes\",\"no\"),\"no\")"]
[null,null,{"$f":"IF(AND(dms_Model=\"CA\",(dms_060301_checkvalue=\"no\")),\"error - NR not present\",\"no errors\")","v":"no errors"},null,"=IF(AND(dms_Model=\"CA\",(dms_060301_checkvalue=\"no\")),\"error - NR not present\",\"no errors\")"]
[null,"Table 6.3.1 - last row reference",{"$f":"IFERROR(IF(dms_Model=\"CA\",LOOKUP(2,1/(dms_060301_Avg_Duration_Sustained_Int_Values<>\"\"),(ROW(dms_060301_Avg_Duration_Sustained_Int_Values))),\"not a CA\"),\"6.3 not present\")","v":"not a CA"},"dms_060301_LastRow","=IFERROR(IF(dms_Model=\"CA\",LOOKUP(2,1/(dms_060301_Avg_Duration_Sustained_Int_Values<>\"\"),(ROW(dms_060301_Avg_Duration_Sustained_Int_Values))),\"not a CA\"),\"6.3 not present\")"]
[null,"Table 6.3.1 - max number rows",{"$f":"IFERROR(IF(dms_Model=\"CA\",(dms_060301_LastRow-15),\"not a CA\"),\"error\")","v":"not a CA"},"dms_060301_MaxRows","=IFERROR(IF(dms_Model=\"CA\",(dms_060301_LastRow-15),\"not a CA\"),\"error\")"]
[null,"Table 6.6.3 - Public lighting repair - no. business days",{"$f":"INDEX(dms_663_List,MATCH(dms_TradingName,dms_TradingName_List))","v":5},"dms_663","=INDEX(dms_663_List,MATCH(dms_TradingName,dms_TradingName_List))"]
[null,"ARR or RESET RINS"]
[null,"How many rows in tables 6.1 or 6.7?  (leap year?)","insert dms_LeapYear NR if required",null,"'dms_LeapYear is used to determine dms_060701_Max_Rows BUT it is only found on worksheet 6.1 or 6.7 and the date value in the cell is used to determine whether it is a leap year"]
[null,"Is dms_LeapYear named range present?",{"$f":"IFERROR(IF(dms_LeapYear,\"yes\"),\"no\")","v":"no"}]
[null,"Table 6.7.1 - includes a leap year?",{"$f":"\nIFERROR(IF(MONTH(DATE(YEAR(dms_LeapYear),2,29))=2,\"is a leap year\",\"not a leap year\"),\n\"dms_LeapYear not present\")","v":"dms_LeapYear not present"},"dms_LeapYear_Result","=IFERROR(IF(MONTH(DATE(YEAR(dms_LeapYear),2,29))=2,\"is a leap year\",\"not a leap year\"),\"dms_LeapYear not present\")"]
[null,"MaxRows if Reset and leap year",{"$f":"IF(dms_LeapYear_Result=\"is a leap year\",1827,1826)","v":1826},"dms_060701_Reset_MaxRows","=IF(dms_LeapYear_Result=\"is a leap year\",1827,1826)",null,null,"number of days present in Reset RIN table"]
[null,"MaxRows if ARR and leap year",{"$f":"IF(dms_LeapYear_Result=\"is a leap year\",366,365)","v":365},"dms_060701_ARR_MaxRows","=IF(dms_LeapYear_Result=\"is a leap year\",366,365)",null,null,"number of days present in ARR RIN table"]
[null,"Table 6.7.1 - Max Rows (leap year/ non leap year)",{"$f":"IF(dms_Model=\"ARR\",dms_060701_ARR_MaxRows,IF(dms_Model=\"Reset\",dms_060701_Reset_MaxRows,\"not a relevant RIN type\"))","v":365},"dms_060701_MaxRows","=IF(dms_Model=\"ARR\",dms_060701_ARR_MaxRows,IF(dms_Model=\"Reset\",dms_060701_Reset_MaxRows,\"not a relevant RIN type\"))"]
[null,"How many columns in 6.7?   (4 or 5 feeder categories)",{"$f":"IF(dms_FifthFeeder_flag_NSP=\"NO\",\"This NSP has only 4 feeder categories\",\"This NSP has 5 feeder categories\")","v":"This NSP has only 4 feeder categories"}]
[null,"Table 6.7.1 - Last column (# of feeder categories > 4)",{"$f":"IF(dms_FifthFeeder_flag_NSP=\"NO\",10,12)","v":10},"dms_060701_MaxCols","=IF(dms_FifthFeeder_flag_NSP=\"NO\",8,10)"]
[null,"Table 6.7.1 - Number of offset rows",{"$f":"IF(dms_Model=\"ARR\",15,9)","v":15},"dms_060701_OffsetRows","=IF(dms_Model=\"ARR\",15,9)"]
[null,"Start date for telephone answering in 6.1 or 6.7?",null,null,"Using 060101 as naming standard not 060701 for start dates"]
[null,"Table 6.1.1 and 6.7.1 - Start Date as Text",{"$f":"IF(dms_SingleYearModel=\"yes\",(CONCATENATE(IF(LEN(CRY)=4,\"1-Jan-\",\"1-Jul-\"),LEFT(CRY,4))),(CONCATENATE(IF(LEN(PRCP_y4)=4,\"1-Jan-\",\"1-Jul-\"),LEFT(PRCP_y4,4))))","v":"1-Jul-2017"},"dms_060101_StartDateTxt","=IF(SUM(dms_SingleYear_Model)>1,(CONCATENATE(IF(LEN(CRY)=4,\"1-Jan-\",\"1-Jul-\"),LEFT(CRY,4))),(CONCATENATE(IF(LEN(CRCP_y4)=4,\"1-Jan-\",\"1-Jul-\"),LEFT(CRCP_y4,4))))"]
[null,"Table 6.1.1 and 6.7.1 - Start Date as Date Value",{"$f":"DATEVALUE(dms_060701_StartDateTxt)","v":42917},"dms_060101_StartDateVal","=DATEVALUE(dms_060701_StartDateTxt)"]
[null,"ARRs"]
[null,"How many rows in table 6.8?","insert dms_060801_StartCell NR if required",null,"dms_060801_StartCell is only found on worksheet 6.8 and is used to determine the starting date for the date range"]
[null,"Is dms_060801_StartCell named range present?",{"$f":"IFERROR(IF((ROW(dms_060801_StartCell)-1)=1,\"yes\",\"yes\"),\"no\")","v":"no"},"Must be present for ARRs","=IFERROR(IF((ROW(dms_060801_StartCell)-1)=1,\"yes\",\"yes\"),\"no\")"]
[null,"Table 6.8 - Number of offset rows",12,"dms_0608_OffsetRows","=IFERROR(IF(dms_Model=\"ARR\",(ROW(dms_060801_StartCell)-1),\"not an ARR\"),\"6.8 error\")"]
[null,"Table 6.8 - Last row",{"$f":"IFERROR(IF(dms_060801_StartCell<>\"\",IF(dms_Model=\"ARR\",(LOOKUP(2,1/(dms_060801_01_Values<>\"\"),(ROW(dms_060801_01_Values)))),\"not an ARR\"),0),\"0\")","v":"0"},"dms_0608_LastRow","=IFERROR(IF(dms_060801_StartCell<>\"\",IF(dms_Model=\"ARR\",(LOOKUP(2,1/(dms_060801_01_Values<>\"\"),(ROW(dms_060801_01_Values)))),\"not an ARR\"),0),\"0\")"]
[null,"Table 6.8 - MaxRows",{"$f":"IFERROR(IF(dms_Model=\"ARR\",(MAX(0,dms_0608_LastRow-dms_0608_OffsetRows)),\"not an ARR\"),\"0\")","v":0},"dms_060801_MaxRows","=IFERROR(IF(dms_Model=\"ARR\",(MAX(0,dms_0608_LastRow-dms_0608_OffsetRows)),\"not an ARR\"),\"0\")"]
[null,"TNSP RESET RINS"]
[null,"Table 7.9.4 only appears in TNSPs Reset RIN"]
[null,"Table 7.9.4 - first year",{"$f":"LEFT(PRCP_y3,4)","v":"2019"},"dms_070904_Start_Year","=LEFT(PRCP_y3,4)"]
[]
[null,"MISC"]
[null,"Distribution Determination Reference",{"$f":"INDEX(dms_DeterminationRef_List,MATCH(dms_TradingName,dms_TradingName_List))","v":{"$error":"#NAME?"}},"dms_DeterminationRef"]
[null,"Public lighting NSP?",{"$f":"INDEX(dms_Public_Lighting_List,MATCH(dms_TradingName,dms_TradingName_List))","v":"NO"},"dms_Public_Lighting","=INDEX(dms_Public_Lighting_List,MATCH(dms_TradingName,dms_TradingName_List))"]
[null,"CBD Feeder for this business",{"$f":"INDEX(dms_CBD_flag,MATCH(dms_TradingName,dms_TradingName_List))","v":"NO"},"dms_CBD_flag_NSP"]
[null,"Urban Feeder for this business",{"$f":"INDEX(dms_Urban_flag,MATCH(dms_TradingName,dms_TradingName_List))","v":"NO"},"dms_Urban_flag_NSP"]
[null,"Short rural Feeder for this business",{"$f":"INDEX(dms_ShortRural_flag,MATCH(dms_TradingName,dms_TradingName_List))","v":"NO"},"dms_ShortRural_flag_NSP"]
[null,"Long rural Feeder for this business",{"$f":"INDEX(dms_LongRural_flag,MATCH(dms_TradingName,dms_TradingName_List))","v":"NO"},"dms_LongRural_flag_NSP"]
[null,"Fifth Feeder Category (eg. TasNetworks (D))",{"$f":"INDEX(dms_FeederType_5_flag,MATCH(dms_TradingName,dms_TradingName_List))","v":"NO"},"dms_FifthFeeder_flag_NSP","=INDEX(dms_FeederType_5_flag,MATCH(dms_TradingName,dms_TradingName_List))"]
[]
[null,"DISCARD FILES"]
[null,"discard this record?","NO","dms_DISCARD","If record is to be discarded from DB set this flag to YES"]
[]
[null,"SUBSET FILES"]
[null,"Is this Submission File a Subset File","NO","dms_Partial"]
[]
[]
[null,"REGULATORY YEARS FOR MULTI RYE SUBMISSIONS"]
[null,"Multiple RYE flag","NO","dms_Multi_RYE_flag"]
[null,null,"Manually specify RYE","Named ranges to apply"]
[null,null,2013,"dms_RYE_01"]
[null,null,2014,"dms_RYE_02"]
[null,null,2015,"dms_RYE_03"]
[null,null,2016,"dms_RYE_04"]
[null,null,2017,"dms_RYE_05"]
[null,null,2018,"dms_RYE_06"]
[null,null,2019,"dms_RYE_07"]
[null,null,2020,"dms_RYE_08"]
[null,null,2021,"dms_RYE_09"]